SERVICE_CODE,ORGANISATION_UNIT,EXPENDITURE_CATEGORY,EXPENDITURE_DESCRIPTION,EXPENDITURE_CODE,NARRATIVE,DATE,TRANSATION_CODE,NET_AMOUNT,SUPPLIER_CODE,SUPPLIER_NAME,FROM_DATE,TO_DATE,FINANCIAL_PERIOD_YEAR
R&B,INFORMATION TECHNOLOGY,EMPLOYEES,APPOINTMENT EXPENSES,1301,P117630-SERVICE-IT Apprentice Vacancy Costs,20/04/2022 00:00,262146,364,SA0133,SOWERBY ADVERTISING AND COMMUNICATIONS,01/04/2022 00:00,24/04/2022 00:00,P01-2023
P&V,NORTH AREA RANGERS,EMPLOYEES,APPOINTMENT EXPENSES,1301,P117650-SERVICE-VACANCY COSTS,20/04/2022 00:00,262147,1350.2,SA0133,SOWERBY ADVERTISING AND COMMUNICATIONS,01/04/2022 00:00,24/04/2022 00:00,P01-2023
P&V,SOUTH AREA RANGERS,EMPLOYEES,APPOINTMENT EXPENSES,1301,P117650-SERVICE-VACANCY COSTS,20/04/2022 00:00,262147,337.55,SA0133,SOWERBY ADVERTISING AND COMMUNICATIONS,01/04/2022 00:00,24/04/2022 00:00,P01-2023
P&V,RIVER LEE COUNTRY PARK,EMPLOYEES,APPOINTMENT EXPENSES,1301,P117650-SERVICE-VACANCY COSTS,20/04/2022 00:00,262147,337.55,SA0133,SOWERBY ADVERTISING AND COMMUNICATIONS,01/04/2022 00:00,24/04/2022 00:00,P01-2023
R&B,HUMAN RESOURCES,EMPLOYEES,TRAINING EXPENSES,1305,P117518-SERVICE-CIPPS ANNUAL PAYROLL UPDATE 6-7 APR 22,11/04/2022 00:00,261801,350,VI0074,VINE HR LIMITED,01/04/2022 00:00,24/04/2022 00:00,P01-2023
P&V,SOUTH AREA RANGERS,EMPLOYEES,TRAINING EXPENSES,1305,P117355-SERVICE-SWATG Annual Group Subscription,06/04/2022 00:00,261505,415,SA0137,SAFFRON WALDEN AGRICULTURAL TRAINING GROUP,01/04/2022 00:00,24/04/2022 00:00,P01-2023
R&B,CORPORATE TRAINING,EMPLOYEES,APPRENTICE LEVY,1390,HMRC,13/04/2022 00:00,261949,643,HM0368,HMRC,01/04/2022 00:00,24/04/2022 00:00,P01-2023
,LEE VALLEY CARAVAN PARK,PREMISES RELATED EXPENDITURE,CONTRACT CLEANING,2120,P117418-SERVICE-Monthly service,06/04/2022 00:00,260817,90.39,IN0012,INITIAL WASHROOM HYGIENE,01/04/2022 00:00,24/04/2022 00:00,P01-2023
,LV LEISURE CENTRE CAMPSITE,PREMISES RELATED EXPENDITURE,CONTRACT CLEANING,2120,P117592-SERVICE-Saniatary equipment,12/04/2022 00:00,261881,145.99,PE0015,PHS GROUP PLC,01/04/2022 00:00,24/04/2022 00:00,P01-2023
P&V,EAST INDIA DOCK AND BOW CREEK,PREMISES RELATED EXPENDITURE,GM NON MAIN CONT UNSCHEDULED,2147,P117443-SERVICE-Repair Manhole Cover at Bow Creek,24/04/2022 00:00,262196,150,JO0019,R G JOYCE,01/04/2022 00:00,24/04/2022 00:00,P01-2023
P&V,SOUTH AREA RANGERS,PREMISES RELATED EXPENDITURE,GENERAL WASTE,2211,P117695-SERVICE-Skip at WaterWorks Centre,24/04/2022 00:00,262145,308,GB0239,GBN SERVICES LTD,01/04/2022 00:00,24/04/2022 00:00,P01-2023
P&V,RIVER LEE COUNTRY PARK,PREMISES RELATED EXPENDITURE,GENERAL WASTE,2211,P117237-SERVICE-12yd General Rubbish Skip at Holyfield Hall F,19/04/2022 00:00,261987,308,GB0239,GBN SERVICES LTD,01/04/2022 00:00,24/04/2022 00:00,P01-2023
P&V,MYDDELTON HOUSE,PREMISES RELATED EXPENDITURE,BUILDING SERVICE AGREEMENTS,2220,P117469-SERVICE-Signalling Transmission Service,06/04/2022 00:00,260111,650.48,AD0015,ADT FIRE & SECURITY PLC,01/04/2022 00:00,24/04/2022 00:00,P01-2023
P&V,MYDDELTON HOUSE,PREMISES RELATED EXPENDITURE,BUILDING SERVICE AGREEMENTS,2220,P117470-SERVICE-British Telecom Redcare,06/04/2022 00:00,260112,628.55,AD0015,ADT FIRE & SECURITY PLC,01/04/2022 00:00,24/04/2022 00:00,P01-2023
P&V,MYDDELTON HOUSE,PREMISES RELATED EXPENDITURE,BUILDING SERVICE AGREEMENTS,2220,P114366-SERVICE-Sanitary Services,06/04/2022 00:00,260913,53.44,PE0015,PHS GROUP PLC,01/04/2022 00:00,24/04/2022 00:00,P01-2023
P&V,MYDDELTON HOUSE,PREMISES RELATED EXPENDITURE,BUILDING SERVICE AGREEMENTS,2220,P117526-SERVICE-Santiary Services,11/04/2022 00:00,261373,167.05,PE0015,PHS GROUP PLC,01/04/2022 00:00,24/04/2022 00:00,P01-2023
P&V,MYDDELTON HOUSE,PREMISES RELATED EXPENDITURE,BUILDING SERVICE AGREEMENTS,2220,P114366-SERVICE-Sanitary Services,06/04/2022 00:00,261386,8.25,PE0015,PHS GROUP PLC,01/04/2022 00:00,24/04/2022 00:00,P01-2023
P&V,MYDDELTON HOUSE,PREMISES RELATED EXPENDITURE,BUILDING SERVICE AGREEMENTS,2220,P117526-SERVICE-Santiary Services,11/04/2022 00:00,261387,22.52,PE0015,PHS GROUP PLC,01/04/2022 00:00,24/04/2022 00:00,P01-2023
P&V,MYDDELTON HOUSE,PREMISES RELATED EXPENDITURE,BUILDING SERVICE AGREEMENTS,2220,P117627-SERVICE-Rental Maintenance & Monitoring of Intruder A,13/04/2022 00:00,261865,1981.19,AD0015,ADT FIRE & SECURITY PLC,01/04/2022 00:00,24/04/2022 00:00,P01-2023
P&V,MYDDELTON HOUSE,PREMISES RELATED EXPENDITURE,BUILDING SERVICE AGREEMENTS,2220,P117628-SERVICE-Maintenance of Fire Alarm,13/04/2022 00:00,261866,3618.91,AD0015,ADT FIRE & SECURITY PLC,01/04/2022 00:00,24/04/2022 00:00,P01-2023
P&V,MYDDELTON HOUSE,PREMISES RELATED EXPENDITURE,BUILDING SERVICE AGREEMENTS,2220,P117526-SERVICE-Santiary Services,24/04/2022 00:00,262213,53.44,PE0015,PHS GROUP PLC,01/04/2022 00:00,24/04/2022 00:00,P01-2023
P&V,MYDDELTON HOUSE,PREMISES RELATED EXPENDITURE,BUILDING SERVICE AGREEMENTS,2220,P117756-SERVICE-Pest Control Myddelton House,24/04/2022 00:00,262353,1564.32,EN0035,LONDON BOROUGH OF ENFIELD,01/04/2022 00:00,24/04/2022 00:00,P01-2023
P&V,MYDDELTON HOUSE,PREMISES RELATED EXPENDITURE,BUILDING SERVICE AGREEMENTS,2220,P117733-SERVICE-Biomass & Boiler Service,24/04/2022 00:00,262419,726.91,MY0444,MYRIAD HEAT & POWER LTD T/A MYRIAD PLANTROOM,01/04/2022 00:00,24/04/2022 00:00,P01-2023
,LEE VALLEY CAMPSITE,PREMISES RELATED EXPENDITURE,BUILDING SERVICE AGREEMENTS,2220,P117559-SERVICE-Intruder Alarm apr 22-23,11/04/2022 00:00,259919,215.55,AC0012,SCUTUM SOUTH EAST LTD (frmly Active Security),01/04/2022 00:00,24/04/2022 00:00,P01-2023
,LEE VALLEY CAMPSITE,PREMISES RELATED EXPENDITURE,BUILDING SERVICE AGREEMENTS,2220,P117559-SERVICE-Digital Monitor Intruder Alarm May 22/23,11/04/2022 00:00,261458,137.3,AC0012,SCUTUM SOUTH EAST LTD (frmly Active Security),01/04/2022 00:00,24/04/2022 00:00,P01-2023
,LEE VALLEY CAMPSITE,PREMISES RELATED EXPENDITURE,BUILDING SERVICE AGREEMENTS,2220,P117559-SERVICE-Galaxy Integral monitor Intruder May 22/23,11/04/2022 00:00,261459,137.3,AC0012,SCUTUM SOUTH EAST LTD (frmly Active Security),01/04/2022 00:00,24/04/2022 00:00,P01-2023
,LEE VALLEY CAMPSITE,PREMISES RELATED EXPENDITURE,BUILDING SERVICE AGREEMENTS,2220,P117674-SERVICE-Blockage  B Block toilets,19/04/2022 00:00,261921,180,CO0550,CONVERT WATER LTD,01/04/2022 00:00,24/04/2022 00:00,P01-2023
P&V,NORTH AREA RANGERS,PREMISES RELATED EXPENDITURE,BUILDING SERVICE AGREEMENTS,2220,P117223-SERVICE-Sanitary Disposal - Old Mill & Meadows Toilet,06/04/2022 00:00,260914,17.58,PE0015,PHS GROUP PLC,01/04/2022 00:00,24/04/2022 00:00,P01-2023
P&V,NORTH AREA RANGERS,PREMISES RELATED EXPENDITURE,BUILDING SERVICE AGREEMENTS,2220,P117223-SERVICE-Sanitary Disposal - Old Mill & Meadows Toilet,24/04/2022 00:00,262214,17.58,PE0015,PHS GROUP PLC,01/04/2022 00:00,24/04/2022 00:00,P01-2023
P&V,GUNPOWDER PARK,PREMISES RELATED EXPENDITURE,BUILDING SERVICE AGREEMENTS,2220,P117221-SERVICE-Sanitary Disposal - Gunpowder Park Office Toi,06/04/2022 00:00,261389,2.7,PE0015,PHS GROUP PLC,01/04/2022 00:00,24/04/2022 00:00,P01-2023
P&V,GUNPOWDER PARK,PREMISES RELATED EXPENDITURE,BUILDING SERVICE AGREEMENTS,2220,P117222-SERVICE-Sanitary Disposal - Gunpowder Park - Public T,11/04/2022 00:00,261915,14.3,PE0015,PHS GROUP PLC,01/04/2022 00:00,24/04/2022 00:00,P01-2023
P&V,RIVER LEE COUNTRY PARK,PREMISES RELATED EXPENDITURE,BUILDING SERVICE AGREEMENTS,2220,P117218-SERVICE-Sharps Container - Ranger Farm Office,06/04/2022 00:00,261388,5.88,PE0015,PHS GROUP PLC,01/04/2022 00:00,24/04/2022 00:00,P01-2023
P&V,RIVER LEE COUNTRY PARK,PREMISES RELATED EXPENDITURE,BUILDING SERVICE AGREEMENTS,2220,P117224-SERVICE-Sanitary Disposal - Fishers Green Toilets,11/04/2022 00:00,261916,11.37,PE0015,PHS GROUP PLC,01/04/2022 00:00,24/04/2022 00:00,P01-2023
,LV LEISURE CENTRE CAMPSITE,PREMISES RELATED EXPENDITURE,BUILDING SERVICE AGREEMENTS,2220,P117738-SERVICE-Extinguishers and service,24/04/2022 00:00,262183,689.56,MO0478,MORGAN FIRE PROTECTION LTD,01/04/2022 00:00,24/04/2022 00:00,P01-2023
,LEE VALLEY CARAVAN PARK,PREMISES RELATED EXPENDITURE,ENGINEERING SERVICE AGREEMENTS,2221,P117728-SERVICE-repair dryer & washing machines,24/04/2022 00:00,262006,1253.84,AL0434,ALLSOP & FRANCIS,01/04/2022 00:00,24/04/2022 00:00,P01-2023
CEO,RESIDENTIAL ACCOMMODATION,PREMISES RELATED EXPENDITURE,BUILDING REPAIRS & MAINTENANCE,2222,P117429-SERVICE-Pindar Cottage Landlord Fees & Warranty,19/04/2022 00:00,260967,1440,CA0165,CASTLES,01/04/2022 00:00,24/04/2022 00:00,P01-2023
CEO,RESIDENTIAL ACCOMMODATION,PREMISES RELATED EXPENDITURE,BUILDING REPAIRS & MAINTENANCE,2222,P117429-SERVICE-Pindar Cottage Landlord Fees & Warranty,19/04/2022 00:00,260968,244.8,CA0165,CASTLES,01/04/2022 00:00,24/04/2022 00:00,P01-2023
CEO,RESIDENTIAL ACCOMMODATION,PREMISES RELATED EXPENDITURE,BUILDING REPAIRS & MAINTENANCE,2222,P117430-SERVICE-Aquaside Landlord Fees & Warranty,19/04/2022 00:00,260969,1980,CA0165,CASTLES,01/04/2022 00:00,24/04/2022 00:00,P01-2023
CEO,RESIDENTIAL ACCOMMODATION,PREMISES RELATED EXPENDITURE,BUILDING REPAIRS & MAINTENANCE,2222,P117430-SERVICE-Aquaside Landlord Fees & Warranty,19/04/2022 00:00,260970,336.6,CA0165,CASTLES,01/04/2022 00:00,24/04/2022 00:00,P01-2023
,LEE VALLEY MARINA SPRINGFIELD,PREMISES RELATED EXPENDITURE,BUILDING REPAIRS & MAINTENANCE,2222,P117524-SERVICE-Annual maintenance visits x 2,11/04/2022 00:00,261808,1300,DE0013,DENNIS SECURITY CENTRE,01/04/2022 00:00,24/04/2022 00:00,P01-2023
,LEE VALLEY CARAVAN PARK,PREMISES RELATED EXPENDITURE,BUILDING REPAIRS & MAINTENANCE,2222,P117535-SERVICE-Maintenance facilities block,24/04/2022 00:00,261873,845,SO0400,SOUTHERN GREEN SERVICES LIMITED,01/04/2022 00:00,24/04/2022 00:00,P01-2023
P&V,RIVER LEE COUNTRY PARK,PREMISES RELATED EXPENDITURE,BUILDING REPAIRS & MAINTENANCE,2222,P117491-SERVICE-Fire Alarm Maintenance at Wildlife Discovery,24/04/2022 00:00,262140,105,TJ0009,T.J.FIRE & SECURITY,01/04/2022 00:00,24/04/2022 00:00,P01-2023
,LV LEISURE CENTRE CAMPSITE,PREMISES RELATED EXPENDITURE,BUILDING REPAIRS & MAINTENANCE,2222,P117588-SERVICE-PAT testing,12/04/2022 00:00,261770,687,BR0018,BRADSHAW ELECTRICAL LIMITED,01/04/2022 00:00,24/04/2022 00:00,P01-2023
,LEE VALLEY ATHLETICS CENTRE,PREMISES RELATED EXPENDITURE,BUILDING REPAIRS & MAINTENANCE,2222,P117287-SERVICE-LVAC SPRINT TRACK GLASS X2 REPLACEMENT,24/04/2022 00:00,262230,1597,GL0168,SGC GLASS LIMITED,01/04/2022 00:00,24/04/2022 00:00,P01-2023
CEO,LVLC SERVICE CHARGE,PREMISES RELATED EXPENDITURE,BUILDING REPAIRS & MAINTENANCE,2222,P117653-SERVICE-Contract Sweep,19/04/2022 00:00,261774,150,SE0374,SELECT SWEEPER HIRE LTD,01/04/2022 00:00,24/04/2022 00:00,P01-2023
,LEE VALLEY ATHLETICS CENTRE,PREMISES RELATED EXPENDITURE,ENGINEERING SERVICES CONTRACT,2223,P117289-SERVICE-LVAC INV OP/1003001 15/3/22 - 14/6/22,06/04/2022 00:00,260814,52,SC0583,SCOBIE TECHNICAL SERVICES  LIMITED,01/04/2022 00:00,24/04/2022 00:00,P01-2023
P&V,GUNPOWDER PARK,SUPPLIES AND SERVICES,FENCES/GATES ETC.,2231,P117634-SERVICE-Gate Repair at Sewardstone Marsh,24/04/2022 00:00,262383,348,LW0268,LWC ENGINEERING LIMITED,01/04/2022 00:00,24/04/2022 00:00,P01-2023
,LEE VALLEY CARAVAN PARK,PREMISES RELATED EXPENDITURE,ENERGY COSTS (GAS),2333,P117199-SERVICE-Fill gas tanks,06/04/2022 00:00,260537,60,AV0327,AVANTI GAS LIMITED,01/04/2022 00:00,24/04/2022 00:00,P01-2023
,LEE VALLEY CARAVAN PARK,PREMISES RELATED EXPENDITURE,ENERGY COSTS (GAS),2333,P117201-SERVICE-Standing charge,06/04/2022 00:00,260538,60,AV0327,AVANTI GAS LIMITED,01/04/2022 00:00,24/04/2022 00:00,P01-2023
,LEE VALLEY CARAVAN PARK,PREMISES RELATED EXPENDITURE,ENERGY COSTS (GAS),2333,P117200-SERVICE-Standing monthly charge,06/04/2022 00:00,260539,60,AV0327,AVANTI GAS LIMITED,01/04/2022 00:00,24/04/2022 00:00,P01-2023
,LEE VALLEY CARAVAN PARK,PREMISES RELATED EXPENDITURE,ENERGY COSTS (GAS),2333,P117203-SERVICE-Standing charge,06/04/2022 00:00,260540,60,AV0327,AVANTI GAS LIMITED,01/04/2022 00:00,24/04/2022 00:00,P01-2023
,LEE VALLEY CARAVAN PARK,PREMISES RELATED EXPENDITURE,ENERGY COSTS (GAS),2333,P117204-SERVICE-Standing charge,06/04/2022 00:00,260541,60,AV0327,AVANTI GAS LIMITED,01/04/2022 00:00,24/04/2022 00:00,P01-2023
,LEE VALLEY CARAVAN PARK,PREMISES RELATED EXPENDITURE,ENERGY COSTS (GAS),2333,P117724-SERVICE-Fill gas tanks,24/04/2022 00:00,261868,5501.08,AV0327,AVANTI GAS LIMITED,01/04/2022 00:00,24/04/2022 00:00,P01-2023
,LEE VALLEY CARAVAN PARK,PREMISES RELATED EXPENDITURE,ENERGY COSTS (GAS),2333,P117727-SERVICE-Installation Charges,24/04/2022 00:00,261948,550,AV0327,AVANTI GAS LIMITED,01/04/2022 00:00,24/04/2022 00:00,P01-2023
,LEE VALLEY CARAVAN PARK,PREMISES RELATED EXPENDITURE,ENERGY COSTS (GAS),2333,P117730-SERVICE-Monthly charge,24/04/2022 00:00,262180,60,AV0327,AVANTI GAS LIMITED,01/04/2022 00:00,24/04/2022 00:00,P01-2023
,LEE VALLEY CARAVAN PARK,PREMISES RELATED EXPENDITURE,ENERGY COSTS (GAS),2333,P117763-SERVICE-Propane delivery,24/04/2022 00:00,262371,3783.66,AV0327,AVANTI GAS LIMITED,01/04/2022 00:00,24/04/2022 00:00,P01-2023
P&V,YOUTH AND SCHOOLS,PREMISES RELATED EXPENDITURE,RENT (EXTERNAL),2442,P116955-SERVICE-rental of cupboard at Abbey Farmhouse,06/04/2022 00:00,260239,1750,WA0108,WALTHAM ABBEY PAROCHIAL CHURCH COUNCIL,01/04/2022 00:00,24/04/2022 00:00,P01-2023
P&V,MYDDELTON HOUSE,PREMISES RELATED EXPENDITURE,BUSINESS RATES,2444,LONDON BOROUGH OF ENFIELD,19/04/2022 00:00,260471,102144,EN0035,LONDON BOROUGH OF ENFIELD,01/04/2022 00:00,24/04/2022 00:00,P01-2023
CEO,COMMERCIAL ACCOMMODATION,PREMISES RELATED EXPENDITURE,BUSINESS RATES,2444,BOROUGH OF BROXBOURNE,19/04/2022 00:00,260828,5376,BR0016,BOROUGH OF BROXBOURNE,01/04/2022 00:00,24/04/2022 00:00,P01-2023
,LEE VALLEY MARINA SPRINGFIELD,PREMISES RELATED EXPENDITURE,BUSINESS RATES,2444,LONDON BOROUGH OF WALTHAM FORE,19/04/2022 00:00,261169,14489.6,WA0005,LONDON BOROUGH OF WALTHAM FOREST,01/04/2022 00:00,24/04/2022 00:00,P01-2023
,LEE VALLEY MARINA STANSTEAD,PREMISES RELATED EXPENDITURE,BUSINESS RATES,2444,EAST HERTS COUNCIL,19/04/2022 00:00,260210,3143.7,EA0086,EAST HERTS COUNCIL,01/04/2022 00:00,24/04/2022 00:00,P01-2023
,LEE VALLEY MARINA STANSTEAD,PREMISES RELATED EXPENDITURE,BUSINESS RATES,2444,EAST HERTS COUNCIL,19/04/2022 00:00,260211,21082.75,EA0086,EAST HERTS COUNCIL,01/04/2022 00:00,24/04/2022 00:00,P01-2023
,LEE VALLEY MARINA STANSTEAD,PREMISES RELATED EXPENDITURE,BUSINESS RATES,2444,EAST HERTS COUNCIL,19/04/2022 00:00,260874,1671.65,EA0086,EAST HERTS COUNCIL,01/04/2022 00:00,24/04/2022 00:00,P01-2023
,LEE VALLEY WATERWORKS CENTRE,PREMISES RELATED EXPENDITURE,BUSINESS RATES,2444,LONDON BOROUGH OF WALTHAM FORE,19/04/2022 00:00,261168,7734.5,WA0005,LONDON BOROUGH OF WALTHAM FOREST,01/04/2022 00:00,24/04/2022 00:00,P01-2023
,LEE VALLEY CAMPSITE,PREMISES RELATED EXPENDITURE,BUSINESS RATES,2444,EPPING FOREST DISTRICT COUNCIL,19/04/2022 00:00,260825,9992.47,EP0025,EPPING FOREST DISTRICT COUNCIL,01/04/2022 00:00,24/04/2022 00:00,P01-2023
,LEE VALLEY CARAVAN PARK,PREMISES RELATED EXPENDITURE,BUSINESS RATES,2444,BOROUGH OF BROXBOURNE,19/04/2022 00:00,260832,17600,BR0016,BOROUGH OF BROXBOURNE,01/04/2022 00:00,24/04/2022 00:00,P01-2023
CEO,RESIDENTIAL ACCOMMODATION,PREMISES RELATED EXPENDITURE,COUNCIL TAX,2445,EPPING FOREST DISTRICT COUNCIL,14/04/2022 00:00,261634,1211.65,EP0025,EPPING FOREST DISTRICT COUNCIL,01/04/2022 00:00,24/04/2022 00:00,P01-2023
CEO,COMMERCIAL ACCOMMODATION,PREMISES RELATED EXPENDITURE,COUNCIL TAX,2445,BOROUGH OF BROXBOURNE,19/04/2022 00:00,260827,2322.9,BR0016,BOROUGH OF BROXBOURNE,01/04/2022 00:00,24/04/2022 00:00,P01-2023
CEO,COMMERCIAL ACCOMMODATION,PREMISES RELATED EXPENDITURE,COUNCIL TAX,2445,BOROUGH OF BROXBOURNE,19/04/2022 00:00,260833,2534.08,BR0016,BOROUGH OF BROXBOURNE,01/04/2022 00:00,24/04/2022 00:00,P01-2023
,LEE VALLEY CAMPSITE,PREMISES RELATED EXPENDITURE,COUNCIL TAX,2445,EPPING FOREST DISTRICT COUNCIL,11/04/2022 00:00,260820,708.78,EP0025,EPPING FOREST DISTRICT COUNCIL,01/04/2022 00:00,24/04/2022 00:00,P01-2023
P&V,GUNPOWDER PARK,PREMISES RELATED EXPENDITURE,WATER,2555,CASTLE WATER LIMITED,13/04/2022 00:00,261636,539.2,CA0625,CASTLE WATER LIMITED,01/04/2022 00:00,24/04/2022 00:00,P01-2023
P&V,RIVER LEE COUNTRY PARK,PREMISES RELATED EXPENDITURE,WATER,2555,CASTLE WATER LIMITED,13/04/2022 00:00,261545,458.4,CA0625,CASTLE WATER LIMITED,01/04/2022 00:00,24/04/2022 00:00,P01-2023
P&V,RIVER LEE COUNTRY PARK,PREMISES RELATED EXPENDITURE,WATER,2555,CASTLE WATER LIMITED,13/04/2022 00:00,261932,118.29,CA0625,CASTLE WATER LIMITED,01/04/2022 00:00,24/04/2022 00:00,P01-2023
,LEE VALLEY MARINA SPRINGFIELD,PREMISES RELATED EXPENDITURE,CLEANING & DOMESTIC SUPPLIES,2666,"P117560-SERVICE-Sanitary Disposal/Dust Mats,Eco Shield",11/04/2022 00:00,260915,191.64,PE0015,PHS GROUP PLC,01/04/2022 00:00,24/04/2022 00:00,P01-2023
,LEE VALLEY MARINA STANSTEAD,PREMISES RELATED EXPENDITURE,CLEANING & DOMESTIC SUPPLIES,2666,P117489-SERVICE-urinal brush  jkl,20/04/2022 00:00,261848,15.99,TH0008,JKL SOLUTIONS LTD,01/04/2022 00:00,24/04/2022 00:00,P01-2023
,LEE VALLEY MARINA STANSTEAD,PREMISES RELATED EXPENDITURE,CLEANING & DOMESTIC SUPPLIES,2666,P117490-SERVICE-loo rolls and rags -  initial,24/04/2022 00:00,262352,167.5,IN0012,INITIAL WASHROOM HYGIENE,01/04/2022 00:00,24/04/2022 00:00,P01-2023
,LEE VALLEY CAMPSITE,PREMISES RELATED EXPENDITURE,CLEANING & DOMESTIC SUPPLIES,2666,P117530-SERVICE-bio laundry liquid,19/04/2022 00:00,261924,7.02,HY0043,HYGIENE SYSTEMS LTD,01/04/2022 00:00,24/04/2022 00:00,P01-2023
,LEE VALLEY CAMPSITE,PREMISES RELATED EXPENDITURE,CLEANING & DOMESTIC SUPPLIES,2666,P117530-SERVICE-lemon disinfectant,19/04/2022 00:00,261924,11.56,HY0043,HYGIENE SYSTEMS LTD,01/04/2022 00:00,24/04/2022 00:00,P01-2023
,LEE VALLEY CAMPSITE,PREMISES RELATED EXPENDITURE,CLEANING & DOMESTIC SUPPLIES,2666,P117530-SERVICE-Dustpan & brush,19/04/2022 00:00,261924,6.73,HY0043,HYGIENE SYSTEMS LTD,01/04/2022 00:00,24/04/2022 00:00,P01-2023
,LEE VALLEY CAMPSITE,PREMISES RELATED EXPENDITURE,CLEANING & DOMESTIC SUPPLIES,2666,P117530-SERVICE-toilet roll,19/04/2022 00:00,261924,58.5,HY0043,HYGIENE SYSTEMS LTD,01/04/2022 00:00,24/04/2022 00:00,P01-2023
,LEE VALLEY CAMPSITE,PREMISES RELATED EXPENDITURE,CLEANING & DOMESTIC SUPPLIES,2666,P117530-SERVICE-STC acidic Toilet clnr,19/04/2022 00:00,261924,12.85,HY0043,HYGIENE SYSTEMS LTD,01/04/2022 00:00,24/04/2022 00:00,P01-2023
,LEE VALLEY CAMPSITE,PREMISES RELATED EXPENDITURE,CLEANING & DOMESTIC SUPPLIES,2666,P117530-SERVICE-Swing bin liners,19/04/2022 00:00,261924,8.66,HY0043,HYGIENE SYSTEMS LTD,01/04/2022 00:00,24/04/2022 00:00,P01-2023
,LEE VALLEY CAMPSITE,PREMISES RELATED EXPENDITURE,CLEANING & DOMESTIC SUPPLIES,2666,P117530-SERVICE-washing up liq,19/04/2022 00:00,261924,3.11,HY0043,HYGIENE SYSTEMS LTD,01/04/2022 00:00,24/04/2022 00:00,P01-2023
,LEE VALLEY CAMPSITE,PREMISES RELATED EXPENDITURE,CLEANING & DOMESTIC SUPPLIES,2666,P117530-SERVICE-compactor sacks,19/04/2022 00:00,261924,150.5,HY0043,HYGIENE SYSTEMS LTD,01/04/2022 00:00,24/04/2022 00:00,P01-2023
,LEE VALLEY CAMPSITE,PREMISES RELATED EXPENDITURE,CLEANING & DOMESTIC SUPPLIES,2666,P117530-SERVICE-vinyl gloves,19/04/2022 00:00,261924,8,HY0043,HYGIENE SYSTEMS LTD,01/04/2022 00:00,24/04/2022 00:00,P01-2023
,LEE VALLEY CARAVAN PARK,PREMISES RELATED EXPENDITURE,CLEANING & DOMESTIC SUPPLIES,2666,P117668-SERVICE-Cleaning materials,24/04/2022 00:00,262385,254.27,HY0043,HYGIENE SYSTEMS LTD,01/04/2022 00:00,24/04/2022 00:00,P01-2023
,LV LEISURE CENTRE CAMPSITE,PREMISES RELATED EXPENDITURE,CLEANING & DOMESTIC SUPPLIES,2666,P117629-SERVICE-Cleaning supplies,24/04/2022 00:00,262184,163.56,HY0043,HYGIENE SYSTEMS LTD,01/04/2022 00:00,24/04/2022 00:00,P01-2023
P&V,LEE VALLEY FARM HOLYFIELDHALL,TRANSPORT RELATED EXPENDITURE,TRANSPORT RUNNING EXPENSES,3333,P117611-SERVICE-Rental,12/04/2022 00:00,261887,3490.25,CH0719,CHANDLERS (FARM EQUIPMENT) LTD,01/04/2022 00:00,24/04/2022 00:00,P01-2023
P&V,LEE VALLEY FARM HOLYFIELDHALL,TRANSPORT RELATED EXPENDITURE,TRANSPORT RUNNING EXPENSES,3333,P117566-SERVICE-Service Contract for JCB,19/04/2022 00:00,261983,3347.52,OL0059,OLIVER LANDPOWER LIMITED,01/04/2022 00:00,24/04/2022 00:00,P01-2023
P&V,LEE VALLEY FARM HOLYFIELDHALL,TRANSPORT RELATED EXPENDITURE,TRANSPORT RUNNING EXPENSES,3333,P117642-SERVICE-Kuhn 4m Power Harrow and Sulky Drill,20/04/2022 00:00,262153,500,OA0130,OAKFIELDS AGRICULTURE,01/04/2022 00:00,24/04/2022 00:00,P01-2023
P&V,LEE VALLEY FARM HOLYFIELDHALL,TRANSPORT RELATED EXPENDITURE,TRANSPORT RUNNING EXPENSES,3333,P117642-SERVICE-Kuhn 4m Power Harrow and Sulky Drill,24/04/2022 00:00,262396,-500,OA0130,OAKFIELDS AGRICULTURE,01/04/2022 00:00,24/04/2022 00:00,P01-2023
,LV LEISURE CENTRE GOLF COURSE,TRANSPORT RELATED EXPENDITURE,TRANSPORT RUNNING EXPENSES,3333,P117427-SERVICE-1700 litres of red diesel,24/04/2022 00:00,261934,1983.9,SP0543,SPEEDY FUELS LIMITED,01/04/2022 00:00,24/04/2022 00:00,P01-2023
P&V,SOUTH AREA RANGERS,TRANSPORT RELATED EXPENDITURE,VEHICLE REPAIRS & MAINTENANCE,3338,VEHICLES,06/04/2022 00:00,261609,25,FI0001,DIRECTOR OF FINANCE - CASH,01/04/2022 00:00,24/04/2022 00:00,P01-2023
P&V,RIVER LEE COUNTRY PARK,TRANSPORT RELATED EXPENDITURE,VEHICLE REPAIRS & MAINTENANCE,3338,P117118-SERVICE-Boat Trailer Service - De Graaff boat Trailer,24/04/2022 00:00,262175,60,TO0071,G T TOWING,01/04/2022 00:00,24/04/2022 00:00,P01-2023
P&V,RIVER LEE COUNTRY PARK,TRANSPORT RELATED EXPENDITURE,VEHICLE REPAIRS & MAINTENANCE,3338,P117118-SERVICE-Labour and Parts,24/04/2022 00:00,262175,56.31,TO0071,G T TOWING,01/04/2022 00:00,24/04/2022 00:00,P01-2023
P&V,RIVER LEE COUNTRY PARK,TRANSPORT RELATED EXPENDITURE,VEHICLE REPAIRS & MAINTENANCE,3338,P117493-SERVICE-3 Pairs Front Windscreen Wipers - Isuzu GK65M,24/04/2022 00:00,262350,90,AB0153,ABBEY SERVICE CENTRE,01/04/2022 00:00,24/04/2022 00:00,P01-2023
P&V,RIVER LEE COUNTRY PARK,TRANSPORT RELATED EXPENDITURE,VEHICLE REPAIRS & MAINTENANCE,3338,P117493-SERVICE-1x Rear Number Plate Reg Number - EY20TJZ,24/04/2022 00:00,262351,15,AB0153,ABBEY SERVICE CENTRE,01/04/2022 00:00,24/04/2022 00:00,P01-2023
P&V,RIVER LEE COUNTRY PARK,TRANSPORT RELATED EXPENDITURE,VEHICLE REPAIRS & MAINTENANCE,3338,P117118-SERVICE-Boat Trailer  Service - De Graaff boat Traile,24/04/2022 00:00,262361,60,TO0071,G T TOWING,01/04/2022 00:00,24/04/2022 00:00,P01-2023
P&V,RIVER LEE COUNTRY PARK,TRANSPORT RELATED EXPENDITURE,VEHICLE REPAIRS & MAINTENANCE,3338,P117118-SERVICE-Labour and Parts,24/04/2022 00:00,262361,210.78,TO0071,G T TOWING,01/04/2022 00:00,24/04/2022 00:00,P01-2023
,LEE VALLEY MARINA SPRINGFIELD,SUPPLIES AND SERVICES,EQUIPMENT & MATERIALS,4111,P116669-SERVICE-Workshopsupplies,19/04/2022 00:00,261989,59.75,EN0259,L & S ENGINEERS LTD,01/04/2022 00:00,24/04/2022 00:00,P01-2023
,STANSTEAD RECHARGEABLE WORKS,SUPPLIES AND SERVICES,EQUIPMENT & MATERIALS,4111,P117471-SERVICE-blacking,24/04/2022 00:00,261805,1064.8,SM0658,SML PAINTS AND COATINGS,01/04/2022 00:00,24/04/2022 00:00,P01-2023
,LEE VALLEY CAMPSITE,SUPPLIES AND SERVICES,EQUIPMENT & MATERIALS,4111,P117672-SERVICE-Grease gun set,20/04/2022 00:00,261880,18.33,SC0057,SCREWFIX DIRECT LTD,01/04/2022 00:00,24/04/2022 00:00,P01-2023
,LEE VALLEY CARAVAN PARK,SUPPLIES AND SERVICES,EQUIPMENT & MATERIALS,4111,P117718-SERVICE-Combi drill,24/04/2022 00:00,261570,116.66,SC0057,SCREWFIX DIRECT LTD,01/04/2022 00:00,24/04/2022 00:00,P01-2023
,LEE VALLEY CARAVAN PARK,SUPPLIES AND SERVICES,EQUIPMENT & MATERIALS,4111,P117718-SERVICE-Combi drill,24/04/2022 00:00,261571,-116.66,SC0057,SCREWFIX DIRECT LTD,01/04/2022 00:00,24/04/2022 00:00,P01-2023
P&V,SOUTH AREA RANGERS,SUPPLIES AND SERVICES,EQUIPMENT & MATERIALS,4111,EQUIP & MAT,06/04/2022 00:00,261609,12.49,FI0001,DIRECTOR OF FINANCE - CASH,01/04/2022 00:00,24/04/2022 00:00,P01-2023
P&V,SOUTH AREA RANGERS,SUPPLIES AND SERVICES,EQUIPMENT & MATERIALS,4111,EQUIP & MAT,06/04/2022 00:00,261609,3.29,FI0001,DIRECTOR OF FINANCE - CASH,01/04/2022 00:00,24/04/2022 00:00,P01-2023
P&V,SOUTH AREA RANGERS,SUPPLIES AND SERVICES,EQUIPMENT & MATERIALS,4111,EQUIP & MAT,06/04/2022 00:00,261609,2.08,FI0001,DIRECTOR OF FINANCE - CASH,01/04/2022 00:00,24/04/2022 00:00,P01-2023
P&V,SOUTH AREA RANGERS,SUPPLIES AND SERVICES,EQUIPMENT & MATERIALS,4111,EQUIP & MAT,06/04/2022 00:00,261609,9,FI0001,DIRECTOR OF FINANCE - CASH,01/04/2022 00:00,24/04/2022 00:00,P01-2023
P&V,SOUTH AREA RANGERS,SUPPLIES AND SERVICES,EQUIPMENT & MATERIALS,4111,P117602-SERVICE-1x Masonry Paint Magnolia,12/04/2022 00:00,261906,28.33,BQ0164,TRADE UK ACCOUNT,01/04/2022 00:00,24/04/2022 00:00,P01-2023
P&V,SOUTH AREA RANGERS,SUPPLIES AND SERVICES,EQUIPMENT & MATERIALS,4111,P117602-SERVICE-3x Twine Rolls,12/04/2022 00:00,261906,9.85,BQ0164,TRADE UK ACCOUNT,01/04/2022 00:00,24/04/2022 00:00,P01-2023
P&V,SOUTH AREA RANGERS,SUPPLIES AND SERVICES,EQUIPMENT & MATERIALS,4111,P117602-SERVICE-1x Masonry Paint Red,12/04/2022 00:00,261906,21.67,BQ0164,TRADE UK ACCOUNT,01/04/2022 00:00,24/04/2022 00:00,P01-2023
P&V,SOUTH AREA RANGERS,SUPPLIES AND SERVICES,EQUIPMENT & MATERIALS,4111,P117516-SERVICE-8 Tonne Bag Hoggin Footpath Gravel,20/04/2022 00:00,262188,560,CE0566,CED LTD,01/04/2022 00:00,24/04/2022 00:00,P01-2023
P&V,SOUTH AREA RANGERS,SUPPLIES AND SERVICES,EQUIPMENT & MATERIALS,4111,P117516-SERVICE-Delivery Footpath Gravel,20/04/2022 00:00,262188,200,CE0566,CED LTD,01/04/2022 00:00,24/04/2022 00:00,P01-2023
P&V,RIVER LEE COUNTRY PARK,SUPPLIES AND SERVICES,EQUIPMENT & MATERIALS,4111,TOOLS & EQUIP,06/04/2022 00:00,261608,2.58,FI0001,DIRECTOR OF FINANCE - CASH,01/04/2022 00:00,24/04/2022 00:00,P01-2023
P&V,RIVER LEE COUNTRY PARK,SUPPLIES AND SERVICES,EQUIPMENT & MATERIALS,4111,TOOLS & EQUIP,06/04/2022 00:00,261608,9.75,FI0001,DIRECTOR OF FINANCE - CASH,01/04/2022 00:00,24/04/2022 00:00,P01-2023
P&V,RIVER LEE COUNTRY PARK,SUPPLIES AND SERVICES,EQUIPMENT & MATERIALS,4111,TOOLS & EQUIP,06/04/2022 00:00,261608,4.58,FI0001,DIRECTOR OF FINANCE - CASH,01/04/2022 00:00,24/04/2022 00:00,P01-2023
P&V,RIVER LEE COUNTRY PARK,SUPPLIES AND SERVICES,EQUIPMENT & MATERIALS,4111,TOOLS & EQUIP,06/04/2022 00:00,261608,3.33,FI0001,DIRECTOR OF FINANCE - CASH,01/04/2022 00:00,24/04/2022 00:00,P01-2023
,LV HOCKEY AND TENNIS CENTRE,SUPPLIES AND SERVICES,EQUIPMENT & MATERIALS,4111,P117015-SERVICE-repairs to Fencing and Netting,24/04/2022 00:00,262229,281,MD0485,MDS LEISURE,01/04/2022 00:00,24/04/2022 00:00,P01-2023
,LV LEISURE CENTRE CAMPSITE,SUPPLIES AND SERVICES,EQUIPMENT & MATERIALS,4111,P117586-SERVICE-Screws and hammer maintenance,12/04/2022 00:00,261569,33.61,BQ0164,TRADE UK ACCOUNT,01/04/2022 00:00,24/04/2022 00:00,P01-2023
,LV LEISURE CENTRE CAMPSITE,SUPPLIES AND SERVICES,EQUIPMENT & MATERIALS,4111,GRINDING STONESET,06/04/2022 00:00,261607,5.06,FI0001,DIRECTOR OF FINANCE - CASH,01/04/2022 00:00,24/04/2022 00:00,P01-2023
,LV LEISURE CENTRE CAMPSITE,SUPPLIES AND SERVICES,EQUIPMENT & MATERIALS,4111,MERCURY TRACTOR PARTS,06/04/2022 00:00,261607,11.49,FI0001,DIRECTOR OF FINANCE - CASH,01/04/2022 00:00,24/04/2022 00:00,P01-2023
,LV LEISURE CENTRE CAMPSITE,SUPPLIES AND SERVICES,EQUIPMENT & MATERIALS,4111,NEG BAT TERMINAL,06/04/2022 00:00,261607,7,FI0001,DIRECTOR OF FINANCE - CASH,01/04/2022 00:00,24/04/2022 00:00,P01-2023
,LV LEISURE CENTRE CAMPSITE,SUPPLIES AND SERVICES,EQUIPMENT & MATERIALS,4111,GRINDING STONE SET/FLAP WHEEL,06/04/2022 00:00,261607,11.1,FI0001,DIRECTOR OF FINANCE - CASH,01/04/2022 00:00,24/04/2022 00:00,P01-2023
,LV LEISURE CENTRE CAMPSITE,SUPPLIES AND SERVICES,EQUIPMENT & MATERIALS,4111,P117632-SERVICE-postmix,24/04/2022 00:00,261905,172.5,BQ0164,TRADE UK ACCOUNT,01/04/2022 00:00,24/04/2022 00:00,P01-2023
,LV LEISURE CENTRE CAMPSITE,SUPPLIES AND SERVICES,EQUIPMENT & MATERIALS,4111,P117741-SERVICE-Maintenance supplies,24/04/2022 00:00,262356,164.33,BQ0164,TRADE UK ACCOUNT,01/04/2022 00:00,24/04/2022 00:00,P01-2023
,LV LEISURE CENTRE GOLF COURSE,SUPPLIES AND SERVICES,EQUIPMENT & MATERIALS,4111,EURO PARTS BOSCH BATTERY,06/04/2022 00:00,261607,102.54,FI0001,DIRECTOR OF FINANCE - CASH,01/04/2022 00:00,24/04/2022 00:00,P01-2023
,LV LEISURE CENTRE GOLF COURSE,SUPPLIES AND SERVICES,EQUIPMENT & MATERIALS,4111,2X ALUMINUM CARTRIDGES,06/04/2022 00:00,261607,70,FI0001,DIRECTOR OF FINANCE - CASH,01/04/2022 00:00,24/04/2022 00:00,P01-2023
,LV LEISURE CENTRE GOLF COURSE,SUPPLIES AND SERVICES,EQUIPMENT & MATERIALS,4111,P117613-SERVICE-Golf Course Equipment,20/04/2022 00:00,261998,95,MR0420,MR AMENITY LTD,01/04/2022 00:00,24/04/2022 00:00,P01-2023
,LEE VALLEY CAMPSITE,SUPPLIES AND SERVICES,EQUIPMENT MAINTENANCE,4112,P117673-SERVICE-Repair of tumble dryer,19/04/2022 00:00,262007,195,AL0434,ALLSOP & FRANCIS,01/04/2022 00:00,24/04/2022 00:00,P01-2023
,LEE VALLEY CARAVAN PARK,SUPPLIES AND SERVICES,EQUIPMENT MAINTENANCE,4112,P117696-SERVICE-Washing machine repair,24/04/2022 00:00,261560,100,AL0434,ALLSOP & FRANCIS,01/04/2022 00:00,24/04/2022 00:00,P01-2023
,LEE VALLEY CARAVAN PARK,SUPPLIES AND SERVICES,EQUIPMENT MAINTENANCE,4112,P117726-SERVICE-Hot tub readings,24/04/2022 00:00,261925,339.71,KI0090,KINGFISHER ENVIRONMENTAL SERVICES LTD,01/04/2022 00:00,24/04/2022 00:00,P01-2023
,LEE VALLEY CARAVAN PARK,SUPPLIES AND SERVICES,EQUIPMENT MAINTENANCE,4112,P117734-SERVICE-W.M. coin mech blocked,24/04/2022 00:00,262209,135,AL0434,ALLSOP & FRANCIS,01/04/2022 00:00,24/04/2022 00:00,P01-2023
R&B,INFORMATION TECHNOLOGY,SUPPLIES AND SERVICES,IT CORE SYSTEMS,4113,P117466-SERVICE-CIPHR Payroll,06/04/2022 00:00,260458,542.48,CI0721,CIPHR,01/04/2022 00:00,24/04/2022 00:00,P01-2023
R&B,INFORMATION TECHNOLOGY,SUPPLIES AND SERVICES,IT CORE SYSTEMS,4113,P117472-SERVICE-Managed Fee 14 May - 13 Jun 22,06/04/2022 00:00,261532,1333.47,CE0021,ADVANCED BUSINESS SOLUTIONS,01/04/2022 00:00,24/04/2022 00:00,P01-2023
R&B,INFORMATION TECHNOLOGY,SUPPLIES AND SERVICES,IT CORE SYSTEMS,4113,P117751-SERVICE-Managed Service fees (eFin),24/04/2022 00:00,262148,1333.47,CE0021,ADVANCED BUSINESS SOLUTIONS,01/04/2022 00:00,24/04/2022 00:00,P01-2023
R&B,INFORMATION TECHNOLOGY,SUPPLIES AND SERVICES,IT NETWORK & TELECOMS COSTS,4114,P111480-SERVICE-Monthly SIP Apr 21-Mar 22,06/04/2022 00:00,261506,147.82,FR0131,VOICEFLEX LTD,01/04/2022 00:00,24/04/2022 00:00,P01-2023
P&V,MYDDELTON HOUSE,SUPPLIES AND SERVICES,IT HARDWARE & SOFTWARE COSTS,4116,ZEN INTERNET LTD,12/04/2022 00:00,261912,42,ZE0007,ZEN INTERNET LTD,01/04/2022 00:00,24/04/2022 00:00,P01-2023
R&B,INFORMATION TECHNOLOGY,SUPPLIES AND SERVICES,IT HARDWARE & SOFTWARE COSTS,4116,P117288-SERVICE-SSL Certificare Renewal - adfs.leevalleypark.,06/04/2022 00:00,261573,300,IQ0022,IQUAL,01/04/2022 00:00,24/04/2022 00:00,P01-2023
R&B,INFORMATION TECHNOLOGY,SUPPLIES AND SERVICES,IT HARDWARE & SOFTWARE COSTS,4116,P116912-SERVICE-API development to link AIR to ESRI,12/04/2022 00:00,261927,300,RI0181,RD HEALTH & SAFETY LIMITED,01/04/2022 00:00,24/04/2022 00:00,P01-2023
,LEE VALLEY MARINA SPRINGFIELD,SUPPLIES AND SERVICES,IT HARDWARE & SOFTWARE COSTS,4116,ZEN INTERNET LTD,13/04/2022 00:00,261958,38,ZE0007,ZEN INTERNET LTD,01/04/2022 00:00,24/04/2022 00:00,P01-2023
,LEE VALLEY MARINA STANSTEAD,SUPPLIES AND SERVICES,IT HARDWARE & SOFTWARE COSTS,4116,ZEN INTERNET LTD,24/04/2022 00:00,261995,31.32,ZE0007,ZEN INTERNET LTD,01/04/2022 00:00,24/04/2022 00:00,P01-2023
,LEE VALLEY CARAVAN PARK,SUPPLIES AND SERVICES,IT HARDWARE & SOFTWARE COSTS,4116,P117552-SERVICE-Fibre connection April  2022,13/04/2022 00:00,261763,835,PP0200,PPSNET LIMITED,01/04/2022 00:00,24/04/2022 00:00,P01-2023
P&V,MYDDELTON HOUSE GARDENS,SUPPLIES AND SERVICES,IT HARDWARE & SOFTWARE COSTS,4116,P117382-SERVICE-bontanical software subscription 22,06/04/2022 00:00,260756,310,BO0440,BOTANICAL SOFTWARE LTD,01/04/2022 00:00,24/04/2022 00:00,P01-2023
,LEE VALLEY CAMPSITE,SUPPLIES AND SERVICES,IT MAINTENANCE AGREEMENTS,4119,P114755-SERVICE-Monthly Subscription Nov 21 - Apr 22,06/04/2022 00:00,260526,145.5,NE0218,NETGUIDES LIMITED,01/04/2022 00:00,24/04/2022 00:00,P01-2023
,LEE VALLEY CAMPSITE,SUPPLIES AND SERVICES,IT MAINTENANCE AGREEMENTS,4119,P117645-SERVICE-Monthly Subscription May 22 - Oct 22,20/04/2022 00:00,261955,145.5,NE0218,NETGUIDES LIMITED,01/04/2022 00:00,24/04/2022 00:00,P01-2023
,LEE VALLEY CARAVAN PARK,SUPPLIES AND SERVICES,IT MAINTENANCE AGREEMENTS,4119,P114755-SERVICE-Monthly Subscriptions Nov 21 - April 22 DW,06/04/2022 00:00,260526,145.5,NE0218,NETGUIDES LIMITED,01/04/2022 00:00,24/04/2022 00:00,P01-2023
,LEE VALLEY CARAVAN PARK,SUPPLIES AND SERVICES,IT MAINTENANCE AGREEMENTS,4119,P117645-SERVICE-Monthly Subscriptions May 22 - Oct 22 - Dobbs,20/04/2022 00:00,261955,145.5,NE0218,NETGUIDES LIMITED,01/04/2022 00:00,24/04/2022 00:00,P01-2023
P&V,ALMOST WILD CAMPSITE,SUPPLIES AND SERVICES,IT MAINTENANCE AGREEMENTS,4119,P114755-SERVICE-Monthly Subscription Nov 21 - April 22 AWC,06/04/2022 00:00,260526,145.5,NE0218,NETGUIDES LIMITED,01/04/2022 00:00,24/04/2022 00:00,P01-2023
P&V,ALMOST WILD CAMPSITE,SUPPLIES AND SERVICES,IT MAINTENANCE AGREEMENTS,4119,P117645-SERVICE-Monthly Subscription May 22 - Oct 22,20/04/2022 00:00,261955,145.5,NE0218,NETGUIDES LIMITED,01/04/2022 00:00,24/04/2022 00:00,P01-2023
,LV LEISURE CENTRE CAMPSITE,SUPPLIES AND SERVICES,IT MAINTENANCE AGREEMENTS,4119,P114755-SERVICE-Monthly Subscription Nov 21 - April 22,06/04/2022 00:00,260526,145.5,NE0218,NETGUIDES LIMITED,01/04/2022 00:00,24/04/2022 00:00,P01-2023
,LV LEISURE CENTRE CAMPSITE,SUPPLIES AND SERVICES,IT MAINTENANCE AGREEMENTS,4119,P117645-SERVICE-Monthly Subscription May 22 - Oct 22 - Edmont,20/04/2022 00:00,261955,145.5,NE0218,NETGUIDES LIMITED,01/04/2022 00:00,24/04/2022 00:00,P01-2023
,LEE VALLEY CARAVAN PARK,SUPPLIES AND SERVICES,MATERIALS (GROUNDS MAINT),4125,P117553-SERVICE-Removal of Willow branch HH40,19/04/2022 00:00,261910,200,MU0030,P J MUSK TREES,01/04/2022 00:00,24/04/2022 00:00,P01-2023
P&V,MYDDELTON HOUSE GARDENS,SUPPLIES AND SERVICES,MATERIALS (GROUNDS MAINT),4125,P117715-SERVICE-ignition key april 22,24/04/2022 00:00,261647,20,RE0198,REACH IT - MOVE IT- CRUSH IT !,01/04/2022 00:00,24/04/2022 00:00,P01-2023
P&V,ALMOST WILD CAMPSITE,SUPPLIES AND SERVICES,MATERIALS (GROUNDS MAINT),4125,P117557-SERVICE-SPLIT POPULAR TREE CUTTING AND REMOVAL,19/04/2022 00:00,261911,220,MU0030,P J MUSK TREES,01/04/2022 00:00,24/04/2022 00:00,P01-2023
P&V,MYDDELTON HOUSE GARDENS,SUPPLIES AND SERVICES,MATERIALS (PLANTS & SHRUBS),4126,CLOCKHOUSE NURSERY,24/04/2022 00:00,261828,-15.32,CL0093,CLOCKHOUSE NURSERY,01/04/2022 00:00,24/04/2022 00:00,P01-2023
P&V,MYDDELTON HOUSE GARDENS,SUPPLIES AND SERVICES,MATERIALS (PLANTS & SHRUBS),4126,CLOCKHOUSE NURSERY,24/04/2022 00:00,261828,11.74,CL0093,CLOCKHOUSE NURSERY,01/04/2022 00:00,24/04/2022 00:00,P01-2023
P&V,MYDDELTON HOUSE GARDENS,SUPPLIES AND SERVICES,MATERIALS (PLANTS & SHRUBS),4126,P116909-SERVICE-alpine plants march 22,24/04/2022 00:00,261828,15.32,CL0093,CLOCKHOUSE NURSERY,01/04/2022 00:00,24/04/2022 00:00,P01-2023
P&V,MYDDELTON HOUSE GARDENS,SUPPLIES AND SERVICES,MATERIALS (PLANTS & SHRUBS),4126,CLOCKHOUSE NURSERY,24/04/2022 00:00,261828,3.58,CL0093,CLOCKHOUSE NURSERY,01/04/2022 00:00,24/04/2022 00:00,P01-2023
P&V,MYDDELTON HOUSE GARDENS,SUPPLIES AND SERVICES,MATERIALS (PLANTS & SHRUBS),4126,P117484-SERVICE-garden plants order april 22,24/04/2022 00:00,261960,613.64,HO0428,HOWARD NURSERIES LTD,01/04/2022 00:00,24/04/2022 00:00,P01-2023
P&V,MYDDELTON HOUSE GARDENS,SUPPLIES AND SERVICES,MATERIALS (PLANTS & SHRUBS),4126,P117543-SERVICE-garden plants order april 22,24/04/2022 00:00,262176,570.5,CH0718,CHAPEL COTTAGE PLANTS LIMITED,01/04/2022 00:00,24/04/2022 00:00,P01-2023
,STANSTEAD RECHARGEABLE WORKS,SUPPLIES AND SERVICES,MATERIALS (TOOLS & PLANT),4127,P117593-SERVICE-workshop equipment,24/04/2022 00:00,262139,551.62,SC0057,SCREWFIX DIRECT LTD,01/04/2022 00:00,24/04/2022 00:00,P01-2023
P&V,LEE VALLEY FARM HOLYFIELDHALL,SUPPLIES AND SERVICES,FEED,4133,P117568-SERVICE-Selcoplus,11/04/2022 00:00,261765,3866.98,BO0246,FOR FARMERS UK LTD,01/04/2022 00:00,24/04/2022 00:00,P01-2023
P&V,LEE VALLEY FARM HOLYFIELDHALL,SUPPLIES AND SERVICES,FEED,4133,P117610-SERVICE-Nutrimol,12/04/2022 00:00,261878,2750.8,BO0246,FOR FARMERS UK LTD,01/04/2022 00:00,24/04/2022 00:00,P01-2023
,LV CAMPSITE CARAVAN SALES,SUPPLIES AND SERVICES,DECKING PURCHASES,4173,P117620-SERVICE-Deck for static 21,24/04/2022 00:00,262222,9288.8,LO0459,LONDON LODGES UK,01/04/2022 00:00,24/04/2022 00:00,P01-2023
,LEE VALLEY MARINA STANSTEAD,SUPPLIES AND SERVICES,CLOTHING & UNIFORMS,4225,P117576-SERVICE-April Uniform - Direct Boot,20/04/2022 00:00,261903,757.36,DI0017,DIRECT BOOT & SHOE SUPPLIES,01/04/2022 00:00,24/04/2022 00:00,P01-2023
P&V,SOUTH AREA RANGERS,SUPPLIES AND SERVICES,CLOTHING & UNIFORMS,4225,P117633-SERVICE-5x Sthil Helmets,24/04/2022 00:00,262362,339.95,AP0245,APS LIMITED,01/04/2022 00:00,24/04/2022 00:00,P01-2023
,LEE VALLEY MARINA STANSTEAD,SUPPLIES AND SERVICES,OFFICE EXPENSES,4311,P117488-SERVICE-stationery and cleaning products JKL,20/04/2022 00:00,261847,10.6,TH0008,JKL SOLUTIONS LTD,01/04/2022 00:00,24/04/2022 00:00,P01-2023
,LEE VALLEY CARAVAN PARK,SUPPLIES AND SERVICES,OFFICE EXPENSES,4311,P117732-SERVICE-stocktaking,24/04/2022 00:00,262199,141,VE0038,VENNERS LTD,01/04/2022 00:00,24/04/2022 00:00,P01-2023
P&V,RIVER LEE COUNTRY PARK,SUPPLIES AND SERVICES,OFFICE EXPENSES,4311,OFFICE EXPENSES,06/04/2022 00:00,261608,7.08,FI0001,DIRECTOR OF FINANCE - CASH,01/04/2022 00:00,24/04/2022 00:00,P01-2023
R&B,INFORMATION TECHNOLOGY,SUPPLIES AND SERVICES,PHOTOCOPYING,4314,KONICA MINOLTA BUSINESS SOLUTI,24/04/2022 00:00,262192,459.6,KO0071,KONICA MINOLTA BUSINESS SOLUTIONS ( UK) LTD,01/04/2022 00:00,24/04/2022 00:00,P01-2023
R&B,FINANCE,SUPPLIES AND SERVICES,SUBSCRIPTIONS,4334,P117546-SERVICE-LGA WORKFORCE SUBSCRIPTION - 01/04/2022,11/04/2022 00:00,261846,468,LO0323,LOCAL GOVERNMENT IMPROVEMENT & DEVELOPMENT,01/04/2022 00:00,24/04/2022 00:00,P01-2023
P&V,LEE VALLEY FARM HOLYFIELDHALL,SUPPLIES AND SERVICES,SUBSCRIPTIONS,4334,P117608-SERVICE-Subs,12/04/2022 00:00,261889,385.78,NA0005,NATIONAL MILK RECORDS PLC,01/04/2022 00:00,24/04/2022 00:00,P01-2023
P&V,LEE VALLEY FARM HOLYFIELDHALL,SUPPLIES AND SERVICES,SUBSCRIPTIONS,4334,P117641-SERVICE-Gatekeeper,13/04/2022 00:00,261931,522,FA0040,FARMPLAN COMPUTER SYSTEMS,01/04/2022 00:00,24/04/2022 00:00,P01-2023
P&V,SOUTH AREA RANGERS,SUPPLIES AND SERVICES,VOLUNTEERS EXPENSES,4506,VOLUNTEERS,06/04/2022 00:00,261609,0.8,FI0001,DIRECTOR OF FINANCE - CASH,01/04/2022 00:00,24/04/2022 00:00,P01-2023
P&V,SOUTH AREA RANGERS,SUPPLIES AND SERVICES,VOLUNTEERS EXPENSES,4506,VOLUNTEERS,06/04/2022 00:00,261609,2.04,FI0001,DIRECTOR OF FINANCE - CASH,01/04/2022 00:00,24/04/2022 00:00,P01-2023
P&V,SOUTH AREA RANGERS,SUPPLIES AND SERVICES,VOLUNTEERS EXPENSES,4506,VOLUNTEERS,06/04/2022 00:00,261609,3.75,FI0001,DIRECTOR OF FINANCE - CASH,01/04/2022 00:00,24/04/2022 00:00,P01-2023
P&V,SOUTH AREA RANGERS,SUPPLIES AND SERVICES,VOLUNTEERS EXPENSES,4506,VOLUNTEERS,06/04/2022 00:00,261609,4.15,FI0001,DIRECTOR OF FINANCE - CASH,01/04/2022 00:00,24/04/2022 00:00,P01-2023
P&V,SOUTH AREA RANGERS,SUPPLIES AND SERVICES,VOLUNTEERS EXPENSES,4506,VOLUNTEERS,06/04/2022 00:00,261609,2.2,FI0001,DIRECTOR OF FINANCE - CASH,01/04/2022 00:00,24/04/2022 00:00,P01-2023
P&V,SOUTH AREA RANGERS,SUPPLIES AND SERVICES,VOLUNTEERS EXPENSES,4506,VOLUNTEERS,06/04/2022 00:00,261609,3.85,FI0001,DIRECTOR OF FINANCE - CASH,01/04/2022 00:00,24/04/2022 00:00,P01-2023
P&V,SOUTH AREA RANGERS,SUPPLIES AND SERVICES,VOLUNTEERS EXPENSES,4506,VOLUNTEERS,06/04/2022 00:00,261609,1.75,FI0001,DIRECTOR OF FINANCE - CASH,01/04/2022 00:00,24/04/2022 00:00,P01-2023
P&V,SOUTH AREA RANGERS,SUPPLIES AND SERVICES,VOLUNTEERS EXPENSES,4506,VOLUNTEERS,06/04/2022 00:00,261609,3.4,FI0001,DIRECTOR OF FINANCE - CASH,01/04/2022 00:00,24/04/2022 00:00,P01-2023
P&V,SOUTH AREA RANGERS,SUPPLIES AND SERVICES,VOLUNTEERS EXPENSES,4506,VOLUNTEERS,06/04/2022 00:00,261609,1.6,FI0001,DIRECTOR OF FINANCE - CASH,01/04/2022 00:00,24/04/2022 00:00,P01-2023
P&V,SOUTH AREA RANGERS,SUPPLIES AND SERVICES,VOLUNTEERS EXPENSES,4506,VOLUNTEERS,06/04/2022 00:00,261609,3.34,FI0001,DIRECTOR OF FINANCE - CASH,01/04/2022 00:00,24/04/2022 00:00,P01-2023
P&V,SOUTH AREA RANGERS,SUPPLIES AND SERVICES,VOLUNTEERS EXPENSES,4506,VOLUNTEERS,06/04/2022 00:00,261609,5.6,FI0001,DIRECTOR OF FINANCE - CASH,01/04/2022 00:00,24/04/2022 00:00,P01-2023
P&V,SOUTH AREA RANGERS,SUPPLIES AND SERVICES,VOLUNTEERS EXPENSES,4506,VOLUNTEERS,06/04/2022 00:00,261609,1.2,FI0001,DIRECTOR OF FINANCE - CASH,01/04/2022 00:00,24/04/2022 00:00,P01-2023
P&V,SOUTH AREA RANGERS,SUPPLIES AND SERVICES,VOLUNTEERS EXPENSES,4506,VOLUNTEERS,06/04/2022 00:00,261609,0.8,FI0001,DIRECTOR OF FINANCE - CASH,01/04/2022 00:00,24/04/2022 00:00,P01-2023
P&V,SOUTH AREA RANGERS,SUPPLIES AND SERVICES,VOLUNTEERS EXPENSES,4506,VOLUNTEERS,06/04/2022 00:00,261609,1.84,FI0001,DIRECTOR OF FINANCE - CASH,01/04/2022 00:00,24/04/2022 00:00,P01-2023
P&V,RIVER LEE COUNTRY PARK,SUPPLIES AND SERVICES,VOLUNTEERS EXPENSES,4506,VOLUNTEER EXPENSES,06/04/2022 00:00,261608,3.6,FI0001,DIRECTOR OF FINANCE - CASH,01/04/2022 00:00,24/04/2022 00:00,P01-2023
P&V,RIVER LEE COUNTRY PARK,SUPPLIES AND SERVICES,VOLUNTEERS EXPENSES,4506,VOLUNTEER EXPENSES,06/04/2022 00:00,261608,1.84,FI0001,DIRECTOR OF FINANCE - CASH,01/04/2022 00:00,24/04/2022 00:00,P01-2023
P&V,RIVER LEE COUNTRY PARK,SUPPLIES AND SERVICES,VOLUNTEERS EXPENSES,4506,VOLUNTEER EXPENSES,06/04/2022 00:00,261608,5.71,FI0001,DIRECTOR OF FINANCE - CASH,01/04/2022 00:00,24/04/2022 00:00,P01-2023
P&V,RIVER LEE COUNTRY PARK,SUPPLIES AND SERVICES,VOLUNTEERS EXPENSES,4506,VOLUNTEER EXPENSES,06/04/2022 00:00,261608,4.4,FI0001,DIRECTOR OF FINANCE - CASH,01/04/2022 00:00,24/04/2022 00:00,P01-2023
,LEE VALLEY CARAVAN PARK,SUPPLIES AND SERVICES,MARKETING,4603,P117725-SERVICE-Marketing,24/04/2022 00:00,261888,89.99,UK0025,UK CAMPSITE CO UK,01/04/2022 00:00,24/04/2022 00:00,P01-2023
R&B,FINANCE & RESOURCES MANAGEMENT,SUPPLIES AND SERVICES,DEBT RECOVERY FEES,4646,P117729-SERVICE-DEBT RECOVERY FEES 2022/2023,24/04/2022 00:00,262387,114.6,LE0069,LEGAL RECOVERIES AND COLLECTIONS LIMITED,01/04/2022 00:00,24/04/2022 00:00,P01-2023
CEO,PR/COMMUNICATIONS,SUPPLIES AND SERVICES,SPECIAL MARKETING PROJECTS,4652,P117052-SERVICE-Survery questions,24/04/2022 00:00,262167,1950,YO0019,YOUGOV PLC,01/04/2022 00:00,24/04/2022 00:00,P01-2023
CEO,PR/COMMUNICATIONS,SUPPLIES AND SERVICES,ARTWORK,4664,P116137-SERVICE-How to Find Us map design,19/04/2022 00:00,262121,560,GR0280,BRANDALITY LIMITED,01/04/2022 00:00,24/04/2022 00:00,P01-2023
,LEE VALLEY CARAVAN PARK,SUPPLIES AND SERVICES,ENTERTAINMENT & OTHER LICENCES,4711,P117669-SERVICE-Annual Premises licence,19/04/2022 00:00,261208,70,BR0016,BOROUGH OF BROXBOURNE,01/04/2022 00:00,24/04/2022 00:00,P01-2023
P&V,YOUTH AND SCHOOLS,SUPPLIES AND SERVICES,ACTIVITIES (SCHOOLS),4725,P117415-SERVICE-CLOtC membership- one year  - medium org,06/04/2022 00:00,261438,250,CO0443,COUNCIL FOR LEARNING OUTSIDE THE CLASSROOM,01/04/2022 00:00,24/04/2022 00:00,P01-2023
P&V,YOUTH AND SCHOOLS,SUPPLIES AND SERVICES,ACTIVITIES (SCHOOLS),4725,P117435-SERVICE-IOL memberships,06/04/2022 00:00,261450,360,IN0090,INSTITUTE FOR OUTDOOR LEARNING,01/04/2022 00:00,24/04/2022 00:00,P01-2023
P&V,MYDDLETON HSE HERITAGE CENTRE,SUPPLIES AND SERVICES,NET CATERING PURCHASES,4777,BIDFOOD,19/04/2022 00:00,261485,41.48,360001,BIDFOOD,01/04/2022 00:00,24/04/2022 00:00,P01-2023
P&V,MYDDLETON HSE HERITAGE CENTRE,SUPPLIES AND SERVICES,NET CATERING PURCHASES,4777,BIDFOOD,19/04/2022 00:00,261485,223.15,360001,BIDFOOD,01/04/2022 00:00,24/04/2022 00:00,P01-2023
P&V,MYDDLETON HSE HERITAGE CENTRE,SUPPLIES AND SERVICES,NET CATERING PURCHASES,4777,P117299-SERVICE-food/drinks order w.b 21.3.22,19/04/2022 00:00,261485,264.63,360001,BIDFOOD,01/04/2022 00:00,24/04/2022 00:00,P01-2023
P&V,MYDDLETON HSE HERITAGE CENTRE,SUPPLIES AND SERVICES,NET CATERING PURCHASES,4777,BIDFOOD,19/04/2022 00:00,261485,-264.63,360001,BIDFOOD,01/04/2022 00:00,24/04/2022 00:00,P01-2023
P&V,MYDDLETON HSE HERITAGE CENTRE,SUPPLIES AND SERVICES,NET CATERING PURCHASES,4777,P117574-SERVICE-Food/Drink order w.e. 10.04.2022,24/04/2022 00:00,261917,197.05,360001,BIDFOOD,01/04/2022 00:00,24/04/2022 00:00,P01-2023
P&V,MYDDLETON HSE HERITAGE CENTRE,SUPPLIES AND SERVICES,NET CATERING PURCHASES,4777,P117616-SERVICE-Food/Drink order w.e 07.04.22,24/04/2022 00:00,262004,200.52,360001,BIDFOOD,01/04/2022 00:00,24/04/2022 00:00,P01-2023
P&V,MYDDLETON HSE HERITAGE CENTRE,SUPPLIES AND SERVICES,NET CATERING PURCHASES,4777,BIDFOOD,24/04/2022 00:00,262004,-200.52,360001,BIDFOOD,01/04/2022 00:00,24/04/2022 00:00,P01-2023
P&V,MYDDLETON HSE HERITAGE CENTRE,SUPPLIES AND SERVICES,NET CATERING PURCHASES,4777,BIDFOOD,24/04/2022 00:00,262004,175.59,360001,BIDFOOD,01/04/2022 00:00,24/04/2022 00:00,P01-2023
P&V,MYDDLETON HSE HERITAGE CENTRE,SUPPLIES AND SERVICES,NET CATERING PURCHASES,4777,BIDFOOD,24/04/2022 00:00,262004,24.93,360001,BIDFOOD,01/04/2022 00:00,24/04/2022 00:00,P01-2023
P&V,MYDDLETON HSE HERITAGE CENTRE,SUPPLIES AND SERVICES,NET CATERING PURCHASES,4777,BIDFOOD,24/04/2022 00:00,262218,-465.66,360001,BIDFOOD,01/04/2022 00:00,24/04/2022 00:00,P01-2023
P&V,MYDDLETON HSE HERITAGE CENTRE,SUPPLIES AND SERVICES,NET CATERING PURCHASES,4777,BIDFOOD,24/04/2022 00:00,262218,195.15,360001,BIDFOOD,01/04/2022 00:00,24/04/2022 00:00,P01-2023
P&V,MYDDLETON HSE HERITAGE CENTRE,SUPPLIES AND SERVICES,NET CATERING PURCHASES,4777,BIDFOOD,24/04/2022 00:00,262218,270.51,360001,BIDFOOD,01/04/2022 00:00,24/04/2022 00:00,P01-2023
P&V,MYDDLETON HSE HERITAGE CENTRE,SUPPLIES AND SERVICES,NET CATERING PURCHASES,4777,P117365-SERVICE-food/drinl order w.e 27.03.22,24/04/2022 00:00,262218,465.66,360001,BIDFOOD,01/04/2022 00:00,24/04/2022 00:00,P01-2023
P&V,MYDDLETON HSE HERITAGE CENTRE,SUPPLIES AND SERVICES,NET CATERING PURCHASES,4777,P117300-SERVICE-food/drinks order w.b 21.3.22,24/04/2022 00:00,262374,168.44,CA0585,CAFE CONNECTIONS,01/04/2022 00:00,24/04/2022 00:00,P01-2023
,LEE VALLEY MARINA SPRINGFIELD,SUPPLIES AND SERVICES,TRADING AC - EXTERNAL PURCHASE,4875,P117482-SERVICE-Chandlery Stock,06/04/2022 00:00,261564,29.2,MI0200,MIDLAND CHANDLERS LIMITED,01/04/2022 00:00,24/04/2022 00:00,P01-2023
,LEE VALLEY MARINA SPRINGFIELD,SUPPLIES AND SERVICES,TRADING AC - EXTERNAL PURCHASE,4875,P117501-SERVICE-Chandlery Stock,12/04/2022 00:00,261764,968.23,MI0200,MIDLAND CHANDLERS LIMITED,01/04/2022 00:00,24/04/2022 00:00,P01-2023
,LEE VALLEY MARINA SPRINGFIELD,SUPPLIES AND SERVICES,TRADING AC - EXTERNAL PURCHASE,4875,P117523-SERVICE-CHandlery Stock,11/04/2022 00:00,261810,87.24,MI0200,MIDLAND CHANDLERS LIMITED,01/04/2022 00:00,24/04/2022 00:00,P01-2023
,LEE VALLEY MARINA SPRINGFIELD,SUPPLIES AND SERVICES,TRADING AC - EXTERNAL PURCHASE,4875,P117515-SERVICE-Chandlery Stock  92554,11/04/2022 00:00,261811,296.88,AQ0033,AQUAFAX LIMITED,01/04/2022 00:00,24/04/2022 00:00,P01-2023
,LEE VALLEY MARINA SPRINGFIELD,SUPPLIES AND SERVICES,TRADING AC - EXTERNAL PURCHASE,4875,P117704-SERVICE-Chandlery Stock,24/04/2022 00:00,261894,372.52,MI0200,MIDLAND CHANDLERS LIMITED,01/04/2022 00:00,24/04/2022 00:00,P01-2023
,LEE VALLEY MARINA SPRINGFIELD,SUPPLIES AND SERVICES,TRADING AC - EXTERNAL PURCHASE,4875,P117575-SERVICE-Chandlery Stock,19/04/2022 00:00,261966,180,HA0371,HARTS OF OAK,01/04/2022 00:00,24/04/2022 00:00,P01-2023
,LEE VALLEY MARINA SPRINGFIELD,SUPPLIES AND SERVICES,TRADING AC - EXTERNAL PURCHASE,4875,P117441-SERVICE-Workshop supplies,24/04/2022 00:00,261991,13.7,EN0259,L & S ENGINEERS LTD,01/04/2022 00:00,24/04/2022 00:00,P01-2023
,LEE VALLEY MARINA SPRINGFIELD,SUPPLIES AND SERVICES,TRADING AC - EXTERNAL PURCHASE,4875,P117441-SERVICE-Chandlery Stock,24/04/2022 00:00,261991,50,EN0259,L & S ENGINEERS LTD,01/04/2022 00:00,24/04/2022 00:00,P01-2023
,LEE VALLEY MARINA SPRINGFIELD,SUPPLIES AND SERVICES,TRADING AC - EXTERNAL PURCHASE,4875,P117551-SERVICE-Chandlery Stock  WSO0240294,19/04/2022 00:00,262008,155.72,CE0510,CENTURION EUROPE LIMITED,01/04/2022 00:00,24/04/2022 00:00,P01-2023
,LEE VALLEY MARINA SPRINGFIELD,SUPPLIES AND SERVICES,TRADING AC - EXTERNAL PURCHASE,4875,P117656-SERVICE-Chandlery Stock  833342,24/04/2022 00:00,262144,260.35,MI0200,MIDLAND CHANDLERS LIMITED,01/04/2022 00:00,24/04/2022 00:00,P01-2023
,LEE VALLEY MARINA SPRINGFIELD,SUPPLIES AND SERVICES,TRADING AC - EXTERNAL PURCHASE,4875,P117699-SERVICE-Chandlery Stock  94133,24/04/2022 00:00,262347,437.22,AQ0033,AQUAFAX LIMITED,01/04/2022 00:00,24/04/2022 00:00,P01-2023
,LEE VALLEY MARINA SPRINGFIELD,SUPPLIES AND SERVICES,TRADING AC - EXTERNAL PURCHASE,4875,P117698-SERVICE-Chandlery Stock  835642,24/04/2022 00:00,262348,382.5,MI0200,MIDLAND CHANDLERS LIMITED,01/04/2022 00:00,24/04/2022 00:00,P01-2023
,LEE VALLEY MARINA SPRINGFIELD,SUPPLIES AND SERVICES,TRADING AC - EXTERNAL PURCHASE,4875,P117533-SERVICE-Chandlery Stock  (gas and coal),24/04/2022 00:00,262359,1400,SM0664,KG SMITH & SON,01/04/2022 00:00,24/04/2022 00:00,P01-2023
,LEE VALLEY MARINA SPRINGFIELD,SUPPLIES AND SERVICES,TRADING AC - EXTERNAL PURCHASE,4875,KG SMITH & SON,24/04/2022 00:00,262359,1005,SM0664,KG SMITH & SON,01/04/2022 00:00,24/04/2022 00:00,P01-2023
,LEE VALLEY MARINA SPRINGFIELD,SUPPLIES AND SERVICES,TRADING AC - EXTERNAL PURCHASE,4875,KG SMITH & SON,24/04/2022 00:00,262359,-1400,SM0664,KG SMITH & SON,01/04/2022 00:00,24/04/2022 00:00,P01-2023
,LEE VALLEY MARINA SPRINGFIELD,SUPPLIES AND SERVICES,TRADING AC - EXTERNAL PURCHASE,4875,P117533-SERVICE-Chandlery Stock,24/04/2022 00:00,262359,152.9,SM0664,KG SMITH & SON,01/04/2022 00:00,24/04/2022 00:00,P01-2023
,LEE VALLEY MARINA SPRINGFIELD,SUPPLIES AND SERVICES,TRADING AC - EXTERNAL PURCHASE,4875,KG SMITH & SON,24/04/2022 00:00,262359,395,SM0664,KG SMITH & SON,01/04/2022 00:00,24/04/2022 00:00,P01-2023
,LEE VALLEY MARINA SPRINGFIELD,SUPPLIES AND SERVICES,TRADING AC - EXTERNAL PURCHASE,4875,P117533-SERVICE-Chandlery Stock,24/04/2022 00:00,262360,-62.6,SM0664,KG SMITH & SON,01/04/2022 00:00,24/04/2022 00:00,P01-2023
,STANSTEAD RECHARGEABLE WORKS,SUPPLIES AND SERVICES,TRADING AC - EXTERNAL PURCHASE,4875,P117496-SERVICE-logs,24/04/2022 00:00,261594,180,HA0371,HARTS OF OAK,01/04/2022 00:00,24/04/2022 00:00,P01-2023
,STANSTEAD RECHARGEABLE WORKS,SUPPLIES AND SERVICES,TRADING AC - EXTERNAL PURCHASE,4875,P117465-SERVICE-coal and gas,24/04/2022 00:00,261643,1619.5,SM0664,KG SMITH & SON,01/04/2022 00:00,24/04/2022 00:00,P01-2023
,STANSTEAD RECHARGEABLE WORKS,SUPPLIES AND SERVICES,TRADING AC - EXTERNAL PURCHASE,4875,KG SMITH & SON,24/04/2022 00:00,261643,-1619.5,SM0664,KG SMITH & SON,01/04/2022 00:00,24/04/2022 00:00,P01-2023
,STANSTEAD RECHARGEABLE WORKS,SUPPLIES AND SERVICES,TRADING AC - EXTERNAL PURCHASE,4875,KG SMITH & SON,24/04/2022 00:00,261643,1300,SM0664,KG SMITH & SON,01/04/2022 00:00,24/04/2022 00:00,P01-2023
,STANSTEAD RECHARGEABLE WORKS,SUPPLIES AND SERVICES,TRADING AC - EXTERNAL PURCHASE,4875,KG SMITH & SON,24/04/2022 00:00,261643,319.5,SM0664,KG SMITH & SON,01/04/2022 00:00,24/04/2022 00:00,P01-2023
,STANSTEAD RECHARGEABLE WORKS,SUPPLIES AND SERVICES,TRADING AC - EXTERNAL PURCHASE,4875,P117462-SERVICE-2200l red diesel @ 113.45ppl,24/04/2022 00:00,261803,2382.45,SP0543,SPEEDY FUELS LIMITED,01/04/2022 00:00,24/04/2022 00:00,P01-2023
,STANSTEAD RECHARGEABLE WORKS,SUPPLIES AND SERVICES,TRADING AC - EXTERNAL PURCHASE,4875,P116865-SERVICE-coal order,24/04/2022 00:00,261829,1615,SM0664,KG SMITH & SON,01/04/2022 00:00,24/04/2022 00:00,P01-2023
,LEE VALLEY CAMPSITE,SUPPLIES AND SERVICES,TRADING AC - EXTERNAL PURCHASE,4875,P117529-SERVICE-60 x firestarters 0.80p per bag,19/04/2022 00:00,261961,48,LO0473,LOGS DIRECT LTD,01/04/2022 00:00,24/04/2022 00:00,P01-2023
,LEE VALLEY CAMPSITE,SUPPLIES AND SERVICES,TRADING AC - EXTERNAL PURCHASE,4875,P117529-SERVICE-1x pallet Warma wood logs 2.60 per bag,19/04/2022 00:00,261961,234,LO0473,LOGS DIRECT LTD,01/04/2022 00:00,24/04/2022 00:00,P01-2023
,LEE VALLEY CAMPSITE,SUPPLIES AND SERVICES,TRADING AC - EXTERNAL PURCHASE,4875,P117529-SERVICE-1x pallet Warma Lighting cubes 1.90 per box,19/04/2022 00:00,261961,190,LO0473,LOGS DIRECT LTD,01/04/2022 00:00,24/04/2022 00:00,P01-2023
,LEE VALLEY CAMPSITE,SUPPLIES AND SERVICES,TRADING AC - EXTERNAL PURCHASE,4875,P117529-SERVICE-1x pallet natural charcaol 3.50 per bag,19/04/2022 00:00,261961,350,LO0473,LOGS DIRECT LTD,01/04/2022 00:00,24/04/2022 00:00,P01-2023
,LEE VALLEY CARAVAN PARK,SUPPLIES AND SERVICES,TRADING AC - EXTERNAL PURCHASE,4875,"P117623-SERVICE-Charcoal, Logs, Fire starters",20/04/2022 00:00,261963,234,LO0473,LOGS DIRECT LTD,01/04/2022 00:00,24/04/2022 00:00,P01-2023
,LEE VALLEY CARAVAN PARK,SUPPLIES AND SERVICES,TRADING AC - EXTERNAL PURCHASE,4875,"P117623-SERVICE-Charcoal, Logs, Fire starters",19/04/2022 00:00,262001,392,LO0473,LOGS DIRECT LTD,01/04/2022 00:00,24/04/2022 00:00,P01-2023
,LEE VALLEY CARAVAN PARK,SUPPLIES AND SERVICES,TRADING AC - EXTERNAL PURCHASE,4875,P117670-SERVICE-75 firewood,24/04/2022 00:00,262205,412.5,HA0371,HARTS OF OAK,01/04/2022 00:00,24/04/2022 00:00,P01-2023
P&V,ALMOST WILD CAMPSITE,SUPPLIES AND SERVICES,TRADING AC - EXTERNAL PURCHASE,4875,P117625-SERVICE-100 Logs & 25 Charcoal,19/04/2022 00:00,262002,350,LO0473,LOGS DIRECT LTD,01/04/2022 00:00,24/04/2022 00:00,P01-2023
P&V,ALMOST WILD CAMPSITE,SUPPLIES AND SERVICES,TRADING AC - EXTERNAL PURCHASE,4875,P117625-SERVICE-100 Logs & 25 Charcoal,19/04/2022 00:00,262003,234,LO0473,LOGS DIRECT LTD,01/04/2022 00:00,24/04/2022 00:00,P01-2023
,LV LEISURE CENTRE CAMPSITE,SUPPLIES AND SERVICES,TRADING AC - EXTERNAL PURCHASE,4875,"P117541-SERVICE-charcoal logs, burners, firelighters",24/04/2022 00:00,261962,822,LO0473,LOGS DIRECT LTD,01/04/2022 00:00,24/04/2022 00:00,P01-2023
CEO,COMMERCIAL ACCOMMODATION,SUPPLIES AND SERVICES,OTHER EXPENSES,4899,P117468-SERVICE-Land Registry Fees,19/04/2022 00:00,261870,21,HM0032,HM LAND REGISTRY,01/04/2022 00:00,24/04/2022 00:00,P01-2023
CEO,COMMERCIAL ACCOMMODATION,SUPPLIES AND SERVICES,OTHER EXPENSES,4899,P117468-SERVICE-Land Registry Fees,24/04/2022 00:00,262379,3,HM0032,HM LAND REGISTRY,01/04/2022 00:00,24/04/2022 00:00,P01-2023
,LV CAMPSITE CARAVAN SALES,SUPPLIES AND SERVICES,OTHER EXPENSES,4899,P117618-SERVICE-Introduction for static 21,24/04/2022 00:00,262223,2500,LO0459,LONDON LODGES UK,01/04/2022 00:00,24/04/2022 00:00,P01-2023
,LEE VALLEY CARAVAN PARK,SUPPLIES AND SERVICES,OTHER EXPENSES,4899,P117508-SERVICE-19m3 Soil Conditiner - Cap Ex Planting Scheme,19/04/2022 00:00,261999,1314.17,TH0051,THOMPSONS OF CREWS HILL LTD,01/04/2022 00:00,24/04/2022 00:00,P01-2023
P&V,NORTH AREA RANGERS,SUPPLIES AND SERVICES,OTHER EXPENSES,4899,EVENT EXPENSES,06/04/2022 00:00,261608,10,FI0001,DIRECTOR OF FINANCE - CASH,01/04/2022 00:00,24/04/2022 00:00,P01-2023
P&V,RIVER LEE COUNTRY PARK,SUPPLIES AND SERVICES,OTHER EXPENSES,4899,P117510-SERVICE-Corporate 2 Membership Subscription,11/04/2022 00:00,261804,250,CO0139,COUNTRYSIDE MANAGEMENT ASSOCIATION,01/04/2022 00:00,24/04/2022 00:00,P01-2023
P&V,COMMUNITY ACCESS FUND,SUPPLIES AND SERVICES,OTHER EXPENSES,4899,P117636-SERVICE-All Ability Sonshine Clun 3/3/22,24/04/2022 00:00,261947,-400,BI0470,BIKE WORKS,01/04/2022 00:00,24/04/2022 00:00,P01-2023
,LV LEISURE CENTRE CAMPSITE,SUPPLIES AND SERVICES,OTHER EXPENSES,4899,P117644-SERVICE-Dimitri 37 hours campsite,24/04/2022 00:00,262000,555,NE0225,DIMITRI NEOPHYTOU,01/04/2022 00:00,24/04/2022 00:00,P01-2023
,LV LEISURE CENTRE CAMPSITE,SUPPLIES AND SERVICES,OTHER EXPENSES,4899,P117739-SERVICE-Stock take and audit,24/04/2022 00:00,262200,141,VE0038,VENNERS LTD,01/04/2022 00:00,24/04/2022 00:00,P01-2023
,LV LEISURE CENTRE CAMPSITE,SUPPLIES AND SERVICES,OTHER EXPENSES,4899,P117685-SERVICE-Caravan & Camping full member new application,24/04/2022 00:00,262204,67,AA0090,AA MEDIA LIMITED,01/04/2022 00:00,24/04/2022 00:00,P01-2023
,LV LEISURE CENTRE CAMPSITE,SUPPLIES AND SERVICES,OTHER EXPENSES,4899,P117685-SERVICE-Caravan & Camping full Membership,24/04/2022 00:00,262204,268,AA0090,AA MEDIA LIMITED,01/04/2022 00:00,24/04/2022 00:00,P01-2023
,LV LEISURE CENTRE CAMPSITE,SUPPLIES AND SERVICES,OTHER EXPENSES,4899,P117709-SERVICE-4 fire pits for edmonton,24/04/2022 00:00,262370,83,AM0406,AMAZON PAYMENTS UK LIMITED,01/04/2022 00:00,24/04/2022 00:00,P01-2023
,LV LEISURE CENTRE GOLF COURSE,SUPPLIES AND SERVICES,OTHER EXPENSES,4899,P117643-SERVICE-Dimitri 37 Hours Golf,24/04/2022 00:00,262000,555,NE0225,DIMITRI NEOPHYTOU,01/04/2022 00:00,24/04/2022 00:00,P01-2023
P&V,AWARDS AND ACCREDITATIONS,SUPPLIES AND SERVICES,OTHER EXPENSES,4899,P117270-SERVICE-6 Months market research feedback,12/04/2022 00:00,261882,7630,FE0285,FEEDBACK MARKET RESEARCH LIMITED,01/04/2022 00:00,24/04/2022 00:00,P01-2023
P&V,"ASSET PROTECTION, MAINT, DEVEL",CAPITAL EXPENDITURE,CAPITAL EXPENDITURE,4990,P112906-SERVICE-Holyfield Frm reset Manhole,11/04/2022 00:00,261832,550,KE0023,KENDALL & SONS LIMITED,01/04/2022 00:00,24/04/2022 00:00,P01-2023
P&V,"ASSET PROTECTION, MAINT, DEVEL",CAPITAL EXPENDITURE,CAPITAL EXPENDITURE,4990,KENDALL & SONS LIMITED,11/04/2022 00:00,261832,450,KE0023,KENDALL & SONS LIMITED,01/04/2022 00:00,24/04/2022 00:00,P01-2023
P&V,"ASSET PROTECTION, MAINT, DEVEL",CAPITAL EXPENDITURE,CAPITAL EXPENDITURE,4990,KENDALL & SONS LIMITED,11/04/2022 00:00,261832,100,KE0023,KENDALL & SONS LIMITED,01/04/2022 00:00,24/04/2022 00:00,P01-2023
P&V,"ASSET PROTECTION, MAINT, DEVEL",CAPITAL EXPENDITURE,CAPITAL EXPENDITURE,4990,KENDALL & SONS LIMITED,11/04/2022 00:00,261832,-550,KE0023,KENDALL & SONS LIMITED,01/04/2022 00:00,24/04/2022 00:00,P01-2023
P&V,"ASSET PROTECTION, MAINT, DEVEL",CAPITAL EXPENDITURE,CAPITAL EXPENDITURE,4990,KENDALL & SONS LIMITED,11/04/2022 00:00,261834,80,KE0023,KENDALL & SONS LIMITED,01/04/2022 00:00,24/04/2022 00:00,P01-2023
P&V,"ASSET PROTECTION, MAINT, DEVEL",CAPITAL EXPENDITURE,CAPITAL EXPENDITURE,4990,KENDALL & SONS LIMITED,11/04/2022 00:00,261834,550,KE0023,KENDALL & SONS LIMITED,01/04/2022 00:00,24/04/2022 00:00,P01-2023
P&V,"ASSET PROTECTION, MAINT, DEVEL",CAPITAL EXPENDITURE,CAPITAL EXPENDITURE,4990,P106628-SERVICE-Emergency Bridge repairs N130,11/04/2022 00:00,261834,630,KE0023,KENDALL & SONS LIMITED,01/04/2022 00:00,24/04/2022 00:00,P01-2023
P&V,"ASSET PROTECTION, MAINT, DEVEL",CAPITAL EXPENDITURE,CAPITAL EXPENDITURE,4990,KENDALL & SONS LIMITED,11/04/2022 00:00,261834,-630,KE0023,KENDALL & SONS LIMITED,01/04/2022 00:00,24/04/2022 00:00,P01-2023
P&V,"ASSET PROTECTION, MAINT, DEVEL",CAPITAL EXPENDITURE,CAPITAL EXPENDITURE,4990,KENDALL & SONS LIMITED,11/04/2022 00:00,261835,600,KE0023,KENDALL & SONS LIMITED,01/04/2022 00:00,24/04/2022 00:00,P01-2023
P&V,"ASSET PROTECTION, MAINT, DEVEL",CAPITAL EXPENDITURE,CAPITAL EXPENDITURE,4990,P114790-SERVICE-Sth Park Signage Audit/Repairs,11/04/2022 00:00,261835,700,KE0023,KENDALL & SONS LIMITED,01/04/2022 00:00,24/04/2022 00:00,P01-2023
P&V,"ASSET PROTECTION, MAINT, DEVEL",CAPITAL EXPENDITURE,CAPITAL EXPENDITURE,4990,KENDALL & SONS LIMITED,11/04/2022 00:00,261835,-700,KE0023,KENDALL & SONS LIMITED,01/04/2022 00:00,24/04/2022 00:00,P01-2023
P&V,"ASSET PROTECTION, MAINT, DEVEL",CAPITAL EXPENDITURE,CAPITAL EXPENDITURE,4990,KENDALL & SONS LIMITED,11/04/2022 00:00,261835,100,KE0023,KENDALL & SONS LIMITED,01/04/2022 00:00,24/04/2022 00:00,P01-2023
P&V,"ASSET PROTECTION, MAINT, DEVEL",CAPITAL EXPENDITURE,CAPITAL EXPENDITURE,4990,P114789-SERVICE-North Park Signage Audit/Repairs,11/04/2022 00:00,261836,700,KE0023,KENDALL & SONS LIMITED,01/04/2022 00:00,24/04/2022 00:00,P01-2023
P&V,"ASSET PROTECTION, MAINT, DEVEL",CAPITAL EXPENDITURE,CAPITAL EXPENDITURE,4990,KENDALL & SONS LIMITED,11/04/2022 00:00,261836,-700,KE0023,KENDALL & SONS LIMITED,01/04/2022 00:00,24/04/2022 00:00,P01-2023
P&V,"ASSET PROTECTION, MAINT, DEVEL",CAPITAL EXPENDITURE,CAPITAL EXPENDITURE,4990,KENDALL & SONS LIMITED,11/04/2022 00:00,261836,100,KE0023,KENDALL & SONS LIMITED,01/04/2022 00:00,24/04/2022 00:00,P01-2023
P&V,"ASSET PROTECTION, MAINT, DEVEL",CAPITAL EXPENDITURE,CAPITAL EXPENDITURE,4990,KENDALL & SONS LIMITED,11/04/2022 00:00,261836,600,KE0023,KENDALL & SONS LIMITED,01/04/2022 00:00,24/04/2022 00:00,P01-2023
P&V,"ASSET PROTECTION, MAINT, DEVEL",CAPITAL EXPENDITURE,CAPITAL EXPENDITURE,4990,KENDALL & SONS LIMITED,11/04/2022 00:00,261838,-900,KE0023,KENDALL & SONS LIMITED,01/04/2022 00:00,24/04/2022 00:00,P01-2023
P&V,"ASSET PROTECTION, MAINT, DEVEL",CAPITAL EXPENDITURE,CAPITAL EXPENDITURE,4990,KENDALL & SONS LIMITED,11/04/2022 00:00,261838,190,KE0023,KENDALL & SONS LIMITED,01/04/2022 00:00,24/04/2022 00:00,P01-2023
P&V,"ASSET PROTECTION, MAINT, DEVEL",CAPITAL EXPENDITURE,CAPITAL EXPENDITURE,4990,P115778-SERVICE-WWC Beach Area,11/04/2022 00:00,261838,900,KE0023,KENDALL & SONS LIMITED,01/04/2022 00:00,24/04/2022 00:00,P01-2023
P&V,"ASSET PROTECTION, MAINT, DEVEL",CAPITAL EXPENDITURE,CAPITAL EXPENDITURE,4990,KENDALL & SONS LIMITED,11/04/2022 00:00,261838,710,KE0023,KENDALL & SONS LIMITED,01/04/2022 00:00,24/04/2022 00:00,P01-2023
P&V,"ASSET PROTECTION, MAINT, DEVEL",CAPITAL EXPENDITURE,CAPITAL EXPENDITURE,4990,P116614-SERVICE-Springfield Marina Galvanised Roof,24/04/2022 00:00,261965,925,HA0371,HARTS OF OAK,01/04/2022 00:00,24/04/2022 00:00,P01-2023
P&V,EAST INDIA DOCK AND BOW CREEK,CAPITAL EXPENDITURE,CAPITAL EXPENDITURE,4990,P117438-SERVICE-East India Dock Basin Works,24/04/2022 00:00,262193,15700,AB0265,ABP MARINE ENVIRONMENTAL RESEARCH LTD,01/04/2022 00:00,24/04/2022 00:00,P01-2023
P&V,EAST INDIA DOCK AND BOW CREEK,CAPITAL EXPENDITURE,CAPITAL EXPENDITURE,4990,P117442-SERVICE-Silt Survey - East India Dock Basin,24/04/2022 00:00,262194,3400,AB0265,ABP MARINE ENVIRONMENTAL RESEARCH LTD,01/04/2022 00:00,24/04/2022 00:00,P01-2023
P&V,EVENTS MANAGEMENT (PR),THIRD PARTY PAYMENTS,EVENTS,5101,GLOBAL BIRDFAIR LTD,06/04/2022 00:00,260452,26,GL0453,GLOBAL BIRDFAIR LTD,01/04/2022 00:00,24/04/2022 00:00,P01-2023
P&V,EVENTS MANAGEMENT (PR),THIRD PARTY PAYMENTS,EVENTS,5101,P116985-SERVICE-Singel stand and electrical hook up,06/04/2022 00:00,260452,779.33,GL0453,GLOBAL BIRDFAIR LTD,01/04/2022 00:00,24/04/2022 00:00,P01-2023
P&V,EVENTS MANAGEMENT (PR),THIRD PARTY PAYMENTS,EVENTS,5101,GLOBAL BIRDFAIR LTD,06/04/2022 00:00,260452,753.33,GL0453,GLOBAL BIRDFAIR LTD,01/04/2022 00:00,24/04/2022 00:00,P01-2023
P&V,EVENTS MANAGEMENT (PR),THIRD PARTY PAYMENTS,EVENTS,5101,GLOBAL BIRDFAIR LTD,06/04/2022 00:00,260452,-779.33,GL0453,GLOBAL BIRDFAIR LTD,01/04/2022 00:00,24/04/2022 00:00,P01-2023
P&V,EVENTS MANAGEMENT (PR),THIRD PARTY PAYMENTS,EVENTS,5101,P117255-SERVICE-As per quote reference AW13751,24/04/2022 00:00,262413,673.66,PI0390,PITBITZ LIMITED T/A GAZEBOSHOP,01/04/2022 00:00,24/04/2022 00:00,P01-2023
R&B,HUMAN RESOURCES,THIRD PARTY PAYMENTS,CONSULTANTS (GENERAL),5110,P117517-SERVICE-EAP RENEWAL APRIL 22- MARCH 23,11/04/2022 00:00,261771,1237.2,HE0347,HEALTH ASSURED LIMITED,01/04/2022 00:00,24/04/2022 00:00,P01-2023
R&B,HUMAN RESOURCES,THIRD PARTY PAYMENTS,CONSULTANTS (GENERAL),5110,P117531-SERVICE-VINE MEMBERSHIP 01/04/2022 - 31/03/2022,11/04/2022 00:00,261800,3000,VI0074,VINE HR LIMITED,01/04/2022 00:00,24/04/2022 00:00,P01-2023
R&B,HUMAN RESOURCES,THIRD PARTY PAYMENTS,CONSULTANTS (GENERAL),5110,P117542-SERVICE-OH RETAINER 01/04/2022 -31/03/2023,11/04/2022 00:00,261831,245,HE0347,HEALTH ASSURED LIMITED,01/04/2022 00:00,24/04/2022 00:00,P01-2023
P&V,"ASSET PROTECTION, MAINT, DEVEL",THIRD PARTY PAYMENTS,CONSULTANTS (GENERAL),5110,P116939-SERVICE-Three Mills Green Fees Land Drainage,11/04/2022 00:00,261853,4860,CH0468,CUNDALL,01/04/2022 00:00,24/04/2022 00:00,P01-2023
P&V,"ASSET PROTECTION, MAINT, DEVEL",THIRD PARTY PAYMENTS,CONSULTANTS (GENERAL),5110,P117180-SERVICE-WWC TOILET BLOCK,24/04/2022 00:00,262210,200,ST0447,E R HERITAGE,01/04/2022 00:00,24/04/2022 00:00,P01-2023
P&V,"ASSET PROTECTION, MAINT, DEVEL",THIRD PARTY PAYMENTS,CONSULTANTS (GENERAL),5110,P117180-SERVICE-CEPC for five LV Venues,24/04/2022 00:00,262210,8500,ST0447,E R HERITAGE,01/04/2022 00:00,24/04/2022 00:00,P01-2023
P&V,"ASSET PROTECTION, MAINT, DEVEL",THIRD PARTY PAYMENTS,CONSULTANTS (GENERAL),5110,P115912-SERVICE-Bridge N202 Calc Fee,24/04/2022 00:00,262411,4413.12,PE0379,PERFECT CIRCLE JV LTD,01/04/2022 00:00,24/04/2022 00:00,P01-2023
P&V,"ASSET PROTECTION, MAINT, DEVEL",THIRD PARTY PAYMENTS,CONSULTANTS (GENERAL),5110,P115912-SERVICE-Increase on order value agreed MS,24/04/2022 00:00,262411,22.55,PE0379,PERFECT CIRCLE JV LTD,01/04/2022 00:00,24/04/2022 00:00,P01-2023
R&B,INTERNAL AUDIT/HEALTH & SAFETY,THIRD PARTY PAYMENTS,CONSULTANTS (GENERAL),5110,P117619-SERVICE-H&S support April - Sept 2022,13/04/2022 00:00,261953,7108.35,RI0053,RIGHT DIRECTIONS (MANAGEMENT) LTD,01/04/2022 00:00,24/04/2022 00:00,P01-2023
CEO,LEGAL SERVICES,THIRD PARTY PAYMENTS,CONSULTANTS (GENERAL),5110,P117440-SERVICE-Laurie Elks Tribunal Advice,24/04/2022 00:00,262343,5855,KB0138,11KBW,01/04/2022 00:00,24/04/2022 00:00,P01-2023
CEO,LEGAL SERVICES,THIRD PARTY PAYMENTS,CONSULTANTS (GENERAL),5110,P117439-SERVICE-Management Fee Advice,24/04/2022 00:00,262400,2400,YO0009,MARTIN YOUNG,01/04/2022 00:00,24/04/2022 00:00,P01-2023
CEO,CORPORATE MANAGEMENT,THIRD PARTY PAYMENTS,EXTERNAL AUDIT EXPENSES,5117,P114783-SERVICE-Audit services for year ending 31/3/22,24/04/2022 00:00,262363,3584.25,ER0267,ERNST & YOUNG LLP,01/04/2022 00:00,24/04/2022 00:00,P01-2023
P&V,SPORTS DEVELOPMENT GRANTS & AG,THIRD PARTY PAYMENTS,CONTRIBUTIONS/GRANTS MADE,5140,ELREM FOUNDATION CIC,24/04/2022 00:00,262159,4500,EL0412,ELREM FOUNDATION CIC,01/04/2022 00:00,24/04/2022 00:00,P01-2023
R&B,BALANCE SHEET (AUTHORITY),CREDITORS,EMPLOYEES INCOME TAX,6701,HMRC,13/04/2022 00:00,261949,53658.69,HM0368,HMRC,01/04/2022 00:00,24/04/2022 00:00,P01-2023
R&B,BALANCE SHEET (AUTHORITY),CREDITORS,EMPLOYEES NATIONAL INSURANCE,6702,HMRC,13/04/2022 00:00,261949,30410.5,HM0368,HMRC,01/04/2022 00:00,24/04/2022 00:00,P01-2023
R&B,BALANCE SHEET (AUTHORITY),CREDITORS,EMPLOYERS NATIONAL INSURANCE,6704,HMRC,13/04/2022 00:00,261949,41120.72,HM0368,HMRC,01/04/2022 00:00,24/04/2022 00:00,P01-2023
R&B,BALANCE SHEET (AUTHORITY),CREDITORS,EMPLOYEES PENSION LGPS,6706,LONDON PENSION FUND OPERATIONA,13/04/2022 00:00,261950,23361.4,LO0334,LONDON PENSION FUND OPERATIONAL ACCOUNT,01/04/2022 00:00,24/04/2022 00:00,P01-2023
R&B,BALANCE SHEET (AUTHORITY),CREDITORS,EMPLOYEES PENSION LGPS,6706,LOCAL GOVERNMENT AVC DEPARTMEN,13/04/2022 00:00,261951,125,LO0455,LOCAL GOVERNMENT AVC DEPARTMENT,01/04/2022 00:00,24/04/2022 00:00,P01-2023
R&B,BALANCE SHEET (AUTHORITY),CREDITORS,EMPLOYERS PENSION LGPS,6707,LONDON PENSION FUND OPERATIONA,13/04/2022 00:00,261950,50573.66,LO0334,LONDON PENSION FUND OPERATIONAL ACCOUNT,01/04/2022 00:00,24/04/2022 00:00,P01-2023
R&B,BALANCE SHEET (AUTHORITY),CREDITORS,EMPLOYEES STUDENT LOANS,6709,HMRC,13/04/2022 00:00,261949,986,HM0368,HMRC,01/04/2022 00:00,24/04/2022 00:00,P01-2023
R&B,BALANCE SHEET (AUTHORITY),CREDITORS,EMPLOYEES UNION SUBSCRIPTIONS,6711,UNISON Greater London Region,13/04/2022 00:00,261952,64.85,UN0002,UNISON Greater London Region,01/04/2022 00:00,24/04/2022 00:00,P01-2023
R&B,BALANCE SHEET (AUTHORITY),CREDITORS,EMPLOYEES SMP/SSP,6712,HMRC,13/04/2022 00:00,261949,-1153.02,HM0368,HMRC,01/04/2022 00:00,24/04/2022 00:00,P01-2023
R&B,BALANCE SHEET (AUTHORITY),CREDITORS,CONSTRUCTION INDUSTRY SCHEME,6721,R G JOYCE,06/04/2022 00:00,261710,-190,JO0019,R G JOYCE,01/04/2022 00:00,24/04/2022 00:00,P01-2023
R&B,BALANCE SHEET (AUTHORITY),CREDITORS,CONSTRUCTION INDUSTRY SCHEME,6721,KENDALL & SONS LIMITED,13/04/2022 00:00,262074,-346.8,KE0023,KENDALL & SONS LIMITED,01/04/2022 00:00,24/04/2022 00:00,P01-2023
R&B,BALANCE SHEET (AUTHORITY),CREDITORS,CONSTRUCTION INDUSTRY SCHEME,6721,CAPSER,13/04/2022 00:00,262086,-100,MO0041,CAPSER,01/04/2022 00:00,24/04/2022 00:00,P01-2023
R&B,BALANCE SHEET (AUTHORITY),CREDITORS,CONSTRUCTION INDUSTRY SCHEME,6721,KENDALL & SONS LIMITED,20/04/2022 00:00,262294,-59,KE0023,KENDALL & SONS LIMITED,01/04/2022 00:00,24/04/2022 00:00,P01-2023
R&B,BALANCE SHEET (AUTHORITY),CL SUSPENSE,INSURANCE SUSPENSE,6861,MARSH UK  LTD,11/04/2022 00:00,261583,4677.6,MA0012,MARSH UK  LTD,01/04/2022 00:00,24/04/2022 00:00,P01-2023
R&B,REVENUE SUSPENSE (AUTHORITY),GENERAL SUSPENSE,GENERAL SUSPENSE,6890,DAISY COMMUNICATIONS LTD,11/04/2022 00:00,261854,1386.47,ID0002,DAISY COMMUNICATIONS LTD,01/04/2022 00:00,24/04/2022 00:00,P01-2023
R&B,REVENUE SUSPENSE (AUTHORITY),GENERAL SUSPENSE,GENERAL SUSPENSE,6890,DAISY COMMUNICATIONS LTD,11/04/2022 00:00,261855,2162.93,ID0002,DAISY COMMUNICATIONS LTD,01/04/2022 00:00,24/04/2022 00:00,P01-2023
